Workbook

Sheet Unidades (hidden)
A1: CODIGO | B1: UNIDAD
A2: 201 | B2: DIRECCIÓN ADMINISTRATIVA
A3: 202 | B3: DIRECCIÓN GENERAL DE CAMINOS
A4: 203 | B4: UNIDAD EJECUTORA DE CONSERVACIÓN VIAL -COVIAL-
A5: 204 | B5: DIRECCIÓN GENERAL DE TRANSPORTES
A6: 205 | B6: DIRECCIÓN GENERAL DE AERONÁUTICA CIVIL
A7: 206 | B7: UNIDAD DE CONSTRUCCIÓN DE EDIFICIOS DEL ESTADO -UCEE-
A8: 207 | B8: DIRECCIÓN GENERAL DE RADIODIFUSIÓN Y TELEVISIÓN NACIONAL
A9: 208 | B9: UNIDAD DE CONTROL Y SUPERVISIÓN DE CABLE -UNCOSU-
A10: 209 | B10: INSTITUTO NACIONAL DE SISMOLOGÍA, VULCANOLOGÍA, METEOROLOGÍA E HIDROLOGÍA -INSIVUMEH-
A11: 210 | B11: DIRECCIÓN GENERAL DE CORREOS Y TELÉGRAFOS
A12: 211 | B12: SUPERINTENDENCIA DE TELECOMUNICACIONES -SIT-
A13: 212 | B13: FONDO PARA EL DESARROLLO DE LA TELEFONÍA -FONDETEL-
A14: 214 | B14: UNIDAD PARA EL DESARROLLO DE VIVIENDA POPULAR -UDEVIPO-
A15: 216 | B15: DIRECCIÓN GENERAL DE PROTECCIÓN Y SEGURIDAD VIAL -PROVIAL-
A16: 217 | B16: FONDO SOCIAL DE SOLIDARIDAD
A17: 218 | B17: FONDO PARA LA VIVIENDA

Sheet Agosto
A1: MINISTERIO DE COMUNICACIONES, INFRAESTRUCTURA Y VIVIENDA
A3: SEGUIMIENTO DE EJECUCIÓN FÍSICA Y FINANCIERA FUNCIONAMIENTO
A4: MES | B4: A AGOSTO 2024
S6: FÍSICA | AI6: FINANCIERO
K7: FÍSICO | P7: FINANCIERO | S7: ENERO | U7: FEBRERO | W7: MARZO | Y7: ABRIL | AA7: MAYO | AC7: JUNIO | AE7: JULIO | AG7: AGOSTO | AI7: ENERO | AL7: FEBRERO | AO7: MARZO | AR7: ABRIL | AU7: MAYO | AX7: JUNIO | BA7: JULIO | BD7: AGOSTO
A8: UNIDAD | B8: PG | C8: SP | D8: PY | E8: ACT | F8: OB | G8: PRODUCTO | I8: SUBPRODUCTO | J8: NOMBRE | K8: UNIDAD DE MEDIDA | L8: INICIAL | M8: MODIFICADO | N8: VIGENTE | O8: EJECUTADO ACUMULADO | P8: INICIAL | Q8: VIGENTE | R8: EJECUTADO ACUMULADO | S8: Modificado | T8: Ejecutado | U8: Modificado | V8: Ejecutado | W8: Modificado | X8: Ejecutado | Y8: Modificado | Z8: Ejecutado | AA8: Modificado | AB8: Ejecutado | AC8: Modificado | AD8: Ejecutado | AE8: Modificado | AF8: Ejecutado | AG8: Modificado | AH8: Ejecutado | AI8: MODIFICADO | AJ8: EJECUTADO | AK8: EJECUTADO NOMINA | AL8: MODIFICADO | AM8: EJECUTADO | AN8: EJECUTADO NOMINA | AO8: MODIFICADO | AP8: EJECUTADO | AQ8: EJECUTADO NOMINA | AR8: MODIFICADO | AS8: EJECUTADO | AT8: EJECUTADO NOMINA | AU8: MODIFICADO | AV8: EJECUTADO | AW8: EJECUTADO NOMINA | AX8: MODIFICADO | AY8: EJECUTADO | AZ8: EJECUTADO NOMINA | BA8: MODIFICADO | BB8: EJECUTADO | BC8: EJECUTADO NOMINA | BD8: MODIFICADO | BE8: EJECUTADO | BF8: EJECUTADO NOMINA
A9: 201 | B9: 01 | C9: 00 | D9: 000 | E9: 003 | F9: 000 | G9: 000-001 | H9: Servicios Financieros | K9: Evento | L9: 31 | M9: 0 | N9: 31 | O9: =SUM(T9:AH9) -> 30 | P9: 15083171 | Q9: 14118505 | R9: =+AJ9+AK9+AM9+AN9+AP9+AQ9+AS9+AT9+AV9+AW9+AY9+AZ9+BB9+BC9+BE9+BF9 -> 5977624.94 | S9: 0 | T9: 29 | U9: 0 | V9: 0 | W9: 0 | X9: 0 | Y9: 0 | Z9: 0 | AA9: 0 | AB9: 0 | AC9: 0 | AD9: 0 | AE9: 0 | AF9: 1 | AG9: 0 | AH9: 0 | AI9: 70000 | AJ9: 0 | AK9: 326042.46 | AL9: 0 | AM9: 310365.39 | AN9: 298215.79 | AO9: 0 | AP9: 1454795.05 | AQ9: 307428.84 | AR9: 0 | AS9: 166574.08 | AT9: 351190.67 | AU9: 0 | AV9: 14567 | AW9: 347074 | AX9: 0 | AY9: 689837.99 | AZ9: =+AZ10 -> 329074 | BA9: 130562 | BB9: 665051.59 | BC9: 327584.28 | BD9: -1165228 | BE9: 21782.06 | BF9: 368041.74
A10: 201 | B10: 01 | C10: 00 | D10: 000 | E10: 003 | F10: 000 | I10: 000-001-0001 | J10: Servicios Financieros | K10: Evento | L10: 31 | M10: 0 | N10: 31 | O10: =SUM(T10:AH10) -> 30 | P10: 15083171 | Q10: 14118505 | R10: =+AJ10+AK10+AM10+AN10+AP10+AQ10+AS10+AT10+AV10+AW10+AY10+AZ10+BB10+BC10+BE10+BF10 -> 5977624.94 | S10: 0 | T10: 29 | U10: 0 | V10: 0 | W10: 0 | X10: 0 | Y10: 0 | Z10: 0 | AA10: 0 | AB10: 0 | AC10: 0 | AD10: 0 | AE10: 0 | AF10: 1 | AG10: 0 | AH10: 0 | AI10: 70000 | AJ10: 0 | AK10: 326042.46 | AL10: 0 | AM10: 310365.39 | AN10: 298215.79 | AO10: 0 | AP10: 1454795.05 | AQ10: 307428.84 | AR10: 0 | AS10: 166574.08 | AT10: 351190.67 | AU10: 0 | AV10: 14567 | AW10: 347074 | AX10: 0 | AY10: 689837.99 | AZ10: 329074 | BA10: 130562 | BB10: 665051.59 | BC10: 327584.28 | BD10: -1165228 | BE10: 21782.06 | BF10: 368041.74
A11: 201 | B11: 01 | C11: 00 | D11: 000 | E11: 002 | F11: 000 | G11: 000-003 | H11: Servicios Administrativos | K11: Evento | L11: 319 | M11: 0 | N11: 319 | O11: 107 | P11: 15893462 | Q11: 16456687 | R11: 8571764.82 | S11: 0 | T11: 61 | U11: 0 | V11: 5 | W11: 0 | X11: 0 | Y11: 0 | Z11: 0 | AA11: 0 | AB11: 0 | AC11: 0 | AD11: 0 | AE11: 0 | AF11: 41 | AG11: 0 | AH11: 0 | AI11: -32100 | AJ11: 281464.44 | AK11: 587135.55 | AL11: 0 | AM11: 182667.58 | AN11: 568718.8 | AO11: 0 | AP11: 138098.83 | AQ11: 649846.8 | AR11: 0 | AS11: 359685.12 | AT11: 667915.18 | AU11: 0 | AV11: 596398.17 | AW11: 679391.87 | AX11: 0 | AY11: 568902.86 | AZ11: 672559.86 | BA11: 586459 | BB11: 469876.28 | BC11: 851295.49 | BD11: 8866 | BE11: 598772.06 | BF11: 699035.93
A12: 201 | B12: 01 | C12: 00 | D12: 000 | E12: 002 | F12: 000 | I12: 000-003-0001 | J12: Servicios Administrativos | K12: Evento | L12: 319 | M12: 0 | N12: 319 | O12: 107 | P12: 15893462 | Q12: 16456687 | R12: 8571764.82 | S12: 0 | T12: 61 | U12: 0 | V12: 5 | W12: 0 | X12: 0 | Y12: 0 | Z12: 0 | AA12: 0 | AB12: 0 | AC12: 0 | AD12: 0 | AE12: 0 | AF12: 41 | AG12: 0 | AH12: 0 | AI12: -32100 | AJ12: 281464.44 | AK12: 587135.55 | AL12: 0 | AM12: 182667.58 | AN12: 568718.8 | AO12: 0 | AP12: 138098.83 | AQ12: 649846.8 | AR12: 0 | AS12: 359685.12 | AT12: 667915.18 | AU12: 0 | AV12: 596398.17 | AW12: 679391.87 | AX12: 0 | AY12: 568902.86 | AZ12: 672559.86 | BA12: 586459 | BB12: 469876.28 | BC12: 851295.49 | BD12: 8866 | BE12: 598772.06 | BF12: 699035.93
A13: 201 | B13: 99 | C13: 00 | D13: 000 | E13: 001 | F13: 000 | G13: 000-004 | H13: Personas Jurídicas Beneficiadas Con Aportes Y/O Cuotas Para Transporte | K13: Aporte | L13: 13 | M13: 0 | N13: 13 | O13: 7 | P13: 5874520 | Q13: 5874520 | R13: 4166344 | S13: 0 | T13: 1 | U13: 0 | V13: 2 | W13: 0 | X13: 0 | Y13: 0 | Z13: 0 | AA13: 0 | AB13: 0 | AC13: 0 | AD13: 0 | AE13: 0 | AF13: 4 | AG13: 0 | AH13: 0 | AI13: 0 | AJ13: 427043 | AK13: 0 | AL13: 0 | AM13: 427043 | AO13: 0 | AP13: 524545 | AR13: 0 | AS13: 507834 | AT13: 0 | AU13: 0 | AV13: 392582 | AX13: 0 | AY13: 582211 | BA13: 0 | BB13: 489312 | BD13: 0 | BE13: 815774
A14: 201 | B14: 99 | C14: 00 | D14: 000 | E14: 001 | F14: 000 | I14: 000-004-0001 | J14: Personas Jurídicas Beneficiadas Con Aportes Y/O Cuotas Para Transporte | K14: Aporte | L14: 13 | M14: 0 | N14: 13 | O14: 7 | P14: 5874520 | Q14: 5874520 | R14: 4166344 | S14: 0 | T14: 1 | U14: 0 | V14: 2 | W14: 0 | X14: 0 | Y14: 0 | Z14: 0 | AA14: 0 | AB14: 0 | AC14: 0 | AD14: 0 | AE14: 0 | AF14: 4 | AG14: 0 | AH14: 0 | AI14: 0 | AJ14: 427043 | AL14: 0 | AM14: 427043 | AO14: 0 | AP14: 524545 | AR14: 0 | AS14: 507834 | AU14: 0 | AV14: 392582 | AX14: 0 | AY14: 582211 | BA14: 0 | BB14: 489312 | BD14: 0 | BE14: 815774
A15: 201 | B15: 99 | C15: 00 | D15: 000 | E15: 002 | F15: 000 | G15: 000-005 | H15: Personas Jurídicas Beneficiadas Con Aportes Y/O Cuotas Para Comunicaciones | K15: Aporte | L15: 1 | M15: 0 | N15: 1 | O15: 0 | P15: 55159 | Q15: 59159 | R15: 59102.32 | S15: 0 | T15: 0 | U15: 0 | V15: 0 | W15: 0 | X15: 0 | Y15: 0 | Z15: 0 | AA15: 0 | AB15: 0 | AC15: 0 | AD15: 0 | AE15: 0 | AF15: 0 | AI15: 0 | AJ15: 0 | AK15: 0 | AL15: 0 | AM15: 0 | AN15: 0 | AO15: 0 | AP15: 0 | AQ15: 0 | AR15: 0 | AS15: 0 | AT15: 0 | AU15: 4000 | AV15: 0 | AX15: 0 | AY15: 59102.32 | BA15: 0 | BB15: 0 | BD15: 0 | BE15: 0
A16: 201 | B16: 99 | C16: 00 | D16: 000 | E16: 002 | F16: 000 | I16: 000-005-0001 | J16: Personas Jurídicas Beneficiadas Con Aportes Y/O Cuotas Para Comunicaciones | K16: Aporte | L16: 1 | M16: 0 | N16: 1 | O16: 0 | P16: 55159 | Q16: 59159 | R16: 59102.32 | S16: 0 | T16: 0 | U16: 0 | V16: 0 | W16: 0 | X16: 0 | Y16: 0 | Z16: 0 | AA16: 0 | AB16: 0 | AC16: 0 | AD16: 0 | AE16: 0 | AF16: 0 | AG16: 0 | AH16: 0 | AI16: 0 | AJ16: 0 | AL16: 0 | AM16: 0 | AO16: 0 | AP16: 0 | AR16: 0 | AS16: 0 | AU16: 4000 | AV16: 0 | AX16: 0 | AY16: 59102.32 | BA16: 0 | BB16: 0 | BD16: 0 | BE16: 0
A17: 201 | B17: 99 | C17: 00 | D17: 000 | E17: 003 | F17: 000 | G17: 000-006 | H17: Personas Jurídicas Beneficiadas Con Aportes Y/O Cuotas Para Control Del Medio Ambiente | K17: Aporte | L17: 1 | M17: 0 | N17: 1 | O17: 0 | P17: 400000 | Q17: 396000 | R17: 390612 | S17: 0 | T17: 0 | U17: 0 | V17: 0 | W17: 0 | X17: 0 | Y17: 0 | Z17: 0 | AA17: 0 | AB17: 0 | AC17: 0 | AD17: 0 | AE17: 0 | AF17: 0 | AI17: 0 | AJ17: 0 | AK17: 0 | AL17: 0 | AM17: 390612 | AN17: 0 | AO17: 0 | AP17: 0 | AQ17: 0 | AR17: 0 | AS17: 0 | AT17: 0 | AU17: -4000 | AV17: 0 | AX17: 0 | AY17: 0 | BA17: 0 | BB17: 0 | BD17: 0 | BE17: 0
A18: 201 | B18: 99 | C18: 00 | D18: 000 | E18: 003 | F18: 000 | I18: 000-006-0001 | J18: Personas Jurídicas Beneficiadas Con Aportes Y/O Cuotas Para Control Del Medio Ambiente | K18: Aporte | L18: 1 | M18: 0 | N18: 1 | O18: 0 | P18: 400000 | Q18: 396000 | R18: 390612 | S18: 0 | T18: 0 | U18: 0 | V18: 0 | W18: 0 | X18: 0 | Y18: 0 | Z18: 0 | AA18: 0 | AB18: 0 | AC18: 0 | AD18: 0 | AE18: 0 | AF18: 0 | AG18: 0 | AH18: 0 | AI18: 0 | AJ18: 0 | AL18: 0 | AM18: 390612 | AO18: 0 | AP18: 0 | AR18: 0 | AS18: 0 | AU18: -4000 | AV18: 0 | AX18: 0 | AY18: 0 | BA18: 0 | BB18: 0 | BD18: 0 | BE18: 0
A19: 201 | B19: 01 | C19: 00 | D19: 000 | E19: 001 | F19: 000 | G19: 000-009 | H19: Dirección Superior | K19: Evento | L19: 216 | M19: 0 | N19: 216 | O19: 118 | P19: 25693688 | Q19: 30006172 | R19: 17112289.05 | S19: 0 | T19: 118 | U19: 0 | V19: 0 | W19: 0 | X19: 0 | Y19: 0 | Z19: 0 | AA19: 0 | AB19: 0 | AC19: 0 | AD19: 0 | AE19: 0 | AF19: 0 | AI19: -37900 | AJ19: 0 | AK19: 2015828.02 | AL19: 0 | AM19: 0 | AN19: 1995750.32 | AO19: 0 | AP19: 1559.8 | AQ19: 1911508.41 | AR19: 0 | AS19: 4584.75 | AT19: 2184372.87 | AU19: 0 | AV19: 90963.99 | AW19: 2127501.16 | AX19: 0 | AY19: 51241.95 | AZ19: 2217162.45 | BA19: 3194022 | BB19: 62905.65 | BC19: 2295781.01 | BD19: 1156362 | BE19: 5060 | BF19: 2148068.67
A20: 201 | B20: 01 | C20: 00 | D20: 000 | E20: 001 | F20: 000 | I20: 000-009-0001 | J20: Dirección Superior | K20: Evento | L20: 216 | M20: 0 | N20: 216 | O20: 118 | P20: 25693688 | Q20: 30006172 | R20: 17112289.05 | S20: 0 | T20: 118 | U20: 0 | V20: 0 | W20: 0 | X20: 0 | Y20: 0 | Z20: 0 | AA20: 0 | AB20: 0 | AC20: 0 | AD20: 0 | AE20: 0 | AF20: 0 | AG20: 0 | AH20: 0 | AI20: -37900 | AJ20: 0 | AK20: 2015828.02 | AL20: 0 | AM20: 0 | AN20: 1995750.32 | AO20: 0 | AP20: 1559.8 | AQ20: 1911508.41 | AR20: 0 | AS20: 4584.75 | AT20: 2184372.87 | AU20: 0 | AV20: 90963.99 | AW20: 2127501.16 | AX20: 0 | AY20: 51241.95 | AZ20: 2217162.45 | BA20: 3194022 | BB20: 62905.65 | BC20: 2295781.01 | BD20: 1156362 | BE20: 5060 | BF20: 2148068.67
A21: 202 | B21: 11 | C21: 00 | D21: 000 | E21: 001 | F21: 000 | G21: 017-003 | H21: Dirección Y Coordinación | K21: Evento | L21: 472 | M21: -1 | N21: 473 | O21: 291 | P21: 89558631 | Q21: 99558565 | R21: =+AJ21+AK21+AM21+AN21+AP21+AQ21+AS21+AT21+AV21+AW21+AY21+AZ21+BB21+BC21+BE21+BF21 -> 40221501.12 | S21: 0 | T21: 0 | U21: 0 | V21: 0 | W21: 0 | X21: 0 | Y21: 0 | Z21: 0 | AA21: 1 | AB21: 280 | AC21: 0 | AD21: 5 | AE21: 0 | AF21: 5 | AI21: 0 | AJ21: 24488 | AK21: 3145568.69 | AL21: 0 | AM21: 59413.27 | AN21: 3949344.08 | AO21: 0 | AP21: 2328439.64 | AQ21: 3494686.58 | AR21: 0 | AS21: 212777.65 | AT21: 3372825.9 | AU21: 0 | AV21: 3499677.75 | AW21: 3317984.1 | AX21: 795000 | AY21: 3142299.49 | AZ21: 3735911.33 | BA21: 0 | BB21: 669053.7 | BC21: 4284611.79 | BD21: 9204934 | BE21: 1384040.43 | BF21: 3600378.72
A22: 202 | B22: 11 | C22: 00 | D22: 000 | E22: 001 | F22: 000 | I22: 017-003-0001 | J22: Dirección Y Coordinación | K22: Evento | L22: 472 | M22: -1 | N22: 473 | O22: 291 | P22: 89558631 | Q22: 99558565 | R22: =+AJ22+AK22+AM22+AN22+AP22+AQ22+AS22+AT22+AV22+AW22+AY22+AZ22+BB22+BC22+BE22+BF22 -> 40221501.12 | S22: 0 | T22: 0 | U22: 0 | V22: 0 | W22: 0 | X22: 0 | Y22: 0 | Z22: 0 | AA22: 1 | AB22: 280 | AC22: 0 | AD22: 5 | AE22: 0 | AF22: 5 | AG22: 0 | AH22: 0 | AI22: 0 | AJ22: 24488 | AK22: 3145568.69 | AL22: 0 | AM22: 59413.27 | AN22: 3949344.08 | AO22: 0 | AP22: 2328439.64 | AQ22: 3494686.58 | AR22: 0 | AS22: 212777.65 | AT22: 3372825.9 | AU22: 0 | AV22: 3499677.75 | AW22: 3317984.1 | AX22: 795000 | AY22: 3142299.49 | AZ22: 3735911.33 | BA22: 0 | BB22: 669053.7 | BC22: 4284611.79 | BD22: 9204934 | BE22: 1384040.43 | BF22: 3600378.72
A23: 202 | B23: 11 | C23: 00 | D23: 000 | E23: 002 | F23: 000 | G23: 017-005 | H23: Red Vial Con Servicios De Mantenimiento | K23: Kilómetro | L23: 2657 | M23: 0 | N23: 2657 | O23: 634 | P23: 201689369 | Q23: 189189435 | R23: 76597433.61 | S23: 0 | T23: 0 | U23: 0 | V23: 0 | W23: 0 | X23: 0 | Y23: 0 | Z23: 0 | AA23: 0 | AB23: 188 | AC23: 0 | AD23: 213 | AE23: 0 | AF23: 233 | AI23: 0 | AJ23: 4288.57 | AK23: 7506897.83 | AL23: 0 | AM23: 30557.87 | AN23: 6646781.61 | AO23: 0 | AP23: -30200 | AQ23: =+AQ24 -> 6784456.11 | AR23: 0 | AS23: 985130.62 | AT23: 6631279.1 | AU23: 0 | AV23: 5773234.02 | AW23: 6704247.32 | AX23: -795000 | AY23: 5289541.5 | AZ23: 6545418.96 | BA23: -2500000 | BB23: -262294.05 | BC23: 10363971.68 | BD23: -9204934 | BE23: 6958538.72 | BF23: 6665583.75
A24: 202 | B24: 11 | C24: 00 | D24: 000 | E24: 002 | F24: 000 | I24: 017-005-0001 | J24: Red Vial Con Servicios De Mantenimiento | K24: Kilómetro | L24: 2657 | M24: 0 | N24: 2657 | O24: 634 | P24: 201689369 | Q24: 189189435 | R24: 76597433.61 | S24: 0 | T24: 0 | U24: 0 | V24: 0 | W24: 0 | X24: 0 | Y24: 0 | Z24: 0 | AA24: 0 | AB24: 188 | AC24: 0 | AD24: 213 | AE24: 0 | AF24: 233 | AG24: 0 | AH24: 0 | AI24: 0 | AJ24: 4288.57 | AK24: 7506897.83 | AL24: 0 | AM24: 30557.87 | AN24: 6646781.61 | AO24: 0 | AP24: -30200 | AQ24: 6784456.11 | AR24: 0 | AS24: 985130.62 | AT24: 6631279.1 | AU24: 0 | AV24: 5773234.02 | AW24: 6704247.32 | AX24: -795000 | AY24: 5289541.5 | AZ24: 6545418.96 | BA24: -2500000 | BB24: -262294.05 | BC24: 10363971.68 | BD24: -9204934 | BE24: 6958538.72 | BF24: 6665583.75
A25: 202 | B25: 11 | C25: 03 | D25: 000 | E25: 001 | F25: 000 | G25: 017-008 | H25: Red Vial De Rutas Centroamericanas Con Servicios De Mantenimiento | K25: Kilómetro | L25: 82 | M25: 0 | N25: 82 | O25: 0 | P25: 311854271 | Q25: 311854271 | R25: 215488183.1 | S25: 0 | T25: 0 | U25: 0 | V25: 0 | W25: 0 | X25: 0 | Y25: 0 | Z25: 0 | AA25: 0 | AB25: 0 | AC25: 0 | AD25: 0 | AE25: 0 | AF25: 0 | AI25: 0 | AJ25: 215488183.1 | AL25: 0 | AM25: 0 | AN25: 0 | AO25: 0 | AP25: 0 | AQ25: 0 | AR25: 0 | AS25: 0 | AT25: 0 | AU25: 0 | AV25: 0 | AX25: 0 | AY25: 0 | BA25: 0 | BB25: 0 | BD25: 0 | BE25: 0
A26: 202 | B26: 11 | C26: 03 | D26: 000 | E26: 001 | F26: 000 | I26: 017-008-0001 | J26: Red Vial Con Servicios De Rehabilitación | K26: Kilómetro | L26: 82 | M26: 0 | N26: 82 | O26: 0 | P26: 311854271 | Q26: 311854271 | R26: 215488183.1 | S26: 0 | T26: 0 | U26: 0 | V26: 0 | W26: 0 | X26: 0 | Y26: 0 | Z26: 0 | AA26: 0 | AB26: 0 | AC26: 0 | AD26: 0 | AE26: 0 | AF26: 0 | AG26: 0 | AH26: 0 | AI26: 0 | AJ26: 215488183.1 | AL26: 0 | AM26: 0 | AO26: 0 | AP26: 0 | AR26: 0 | AS26: 0 | AU26: 0 | AV26: 0 | AX26: 0 | AY26: 0 | BA26: 0 | BB26: 0 | BD26: 0 | BE26: 0
A27: 202 | B27: 94 | C27: 14 | D27: 000 | E27: 001 | F27: 000 | G27: 000-049 | H27: Intervenciones Realizadas Para La Atención De La Emergencia Por Época Lluviosa, Temporada Ciclónica Y Sistema De Baja Presión | K27: Documento | L27: 0 | M27: -4 | N27: 4 | O27: -6 | P27: 0 | Q27: 29937211 | R27: 29495532.24 | S27: 10 | T27: 0 | U27: 0 | V27: 0 | W27: 10 | X27: 0 | Y27: -10 | Z27: 0 | AA27: 0 | AB27: 0 | AC27: 0 | AD27: 0 | AE27: -6 | AF27: 0 | AI27: 48648998 | AJ27: 0 | AL27: 0 | AM27: 0 | AN27: 0 | AO27: 0 | AP27: 0 | AQ27: 0 | AR27: 0 | AS27: 0 | AT27: 0 | AU27: 0 | AV27: 0 | AX27: 0 | AY27: 29495532.24 | BA27: -18711787 | BB27: 0 | BD27: 0 | BE27: 0
A28: 202 | B28: 94 | C28: 14 | D28: 000 | E28: 001 | F28: 000 | I28: 000-049-0001 | J28: Intervenciones Realizadas Para La Atención De La Emergencia Por Época Lluviosa, Temporada Ciclónica Y Sistema De Baja Presión | K28: Documento | L28: 0 | M28: -4 | N28: 4 | O28: -6 | P28: 0 | Q28: 29937211 | R28: 29495532.24 | S28: 10 | T28: 0 | U28: 0 | V28: 0 | W28: 10 | X28: 0 | Y28: -10 | Z28: 0 | AA28: 0 | AB28: 0 | AC28: 0 | AD28: 0 | AE28: -6 | AF28: 0 | AG28: 0 | AH28: 0 | AI28: 48648998 | AJ28: 0 | AL28: 0 | AM28: 0 | AO28: 0 | AP28: 0 | AR28: 0 | AS28: 0 | AU28: 0 | AV28: 0 | AX28: 0 | AY28: 29495532.24 | BA28: -18711787 | BB28: 0 | BD28: 0 | BE28: 0
A29: 202 | B29: 94 | C29: 15 | D29: 000 | E29: 001 | F29: 000 | G29: 000-050 | H29: Intervenciones Realizadas Para La Atención De La Emergencia Provocada Por Los Efectos De La Época Lluviosa Y El Ciclón Tropical Julia | K29: Documento | L29: 0 | M29: -12 | N29: 12 | O29: -1 | P29: 0 | Q29: 20062789 | R29: 0 | S29: 13 | T29: 0 | U29: 0 | V29: 0 | W29: 13 | X29: 0 | Y29: -13 | Z29: 0 | AA29: 0 | AB29: 0 | AC29: 0 | AD29: 0 | AE29: -1 | AF29: 0 | AI29: 46351002 | AJ29: 0 | AL29: 0 | AM29: 0 | AN29: 0 | AO29: 0 | AP29: 0 | AQ29: 0 | AR29: 0 | AS29: 0 | AT29: 0 | AU29: 0 | AV29: 0 | AX29: 0 | AY29: 0 | BA29: -26288213 | BB29: 0 | BD29: 0 | BE29: 0
A30: 202 | B30: 94 | C30: 15 | D30: 000 | E30: 001 | F30: 000 | I30: 000-050-0001 | J30: Intervenciones Realizadas Para La Atención De La Emergencia Provocada Por Los Efectos De La Época Lluviosa Y El Ciclón Tropical Julia | K30: Documento | L30: 0 | M30: -12 | N30: 12 | O30: -1 | P30: 0 | Q30: 20062789 | R30: 0 | S30: 13 | T30: 0 | U30: 0 | V30: 0 | W30: 13 | X30: 0 | Y30: -13 | Z30: 0 | AA30: 0 | AB30: 0 | AC30: 0 | AD30: 0 | AE30: -1 | AF30: 0 | AG30: 0 | AH30: 0 | AI30: 46351002 | AJ30: 0 | AL30: 0 | AM30: 0 | AO30: 0 | AP30: 0 | AR30: 0 | AS30: 0 | AU30: 0 | AV30: 0 | AX30: 0 | AY30: 0 | BA30: -26288213 | BB30: 0 | BD30: 0 | BE30: 0
A31: 202 | B31: 94 | C31: 16 | D31: 000 | E31: 001 | F31: 000 | G31: 000-053 | H31: Intervenciones Realizadas Para La Atención De Daños Y Efectos Causados Por El Alto Índice De Lluvias Y Saturación Actual De Los Suelos En El Territorio Nacional (Dg 2-2024) | K31: Documento | L31: 0 | M31: -3 | N31: 3 | O31: 3 | P31: 0 | Q31: 100000000 | R31: 0 | S31: 0 | T31: 0 | U31: 0 | V31: 0 | W31: 0 | X31: 0 | Y31: 0 | Z31: 0 | AA31: 0 | AB31: 0 | AC31: 0 | AD31: 0 | AE31: 3 | AF31: 0 | AI31: 0 | AJ31: 0 | AL31: 0 | AM31: 0 | AN31: 0 | AO31: 0 | AP31: 0 | AQ31: 0 | AR31: 0 | AS31: 0 | AT31: 0 | AU31: 0 | AV31: 0 | AX31: 0 | AY31: 0 | BA31: 100000000 | BB31: 0 | BD31: 0 | BE31: 0
A32: 202 | B32: 94 | C32: 16 | D32: 000 | E32: 001 | F32: 000 | I32: 000-053-0001 | J32: Intervenciones Realizadas Para La Atención De Daños Y Efectos Causados Por El Alto Índice De Lluvias Y Saturación Actual De Los Suelos En El Territorio Nacional (Dg 2-2024) | K32: Documento | L32: 0 | M32: -3 | N32: 3 | O32: 3 | P32: 0 | Q32: 100000000 | R32: 0 | S32: 0 | T32: 0 | U32: 0 | V32: 0 | W32: 0 | X32: 0 | Y32: 0 | Z32: 0 | AA32: 0 | AB32: 0 | AC32: 0 | AD32: 0 | AE32: 3 | AF32: 0 | AG32: 0 | AH32: 0 | AI32: 0 | AJ32: 0 | AL32: 0 | AM32: 0 | AO32: 0 | AP32: 0 | AR32: 0 | AS32: 0 | AU32: 0 | AV32: 0 | AX32: 0 | AY32: 0 | BA32: 100000000 | BB32: 0 | BD32: 0 | BE32: 0
A33: 203 | B33: 11 | C33: 01 | D33: 000 | E33: 001 | F33: 000 | G33: 017-001 | H33: Red Vial Pavimentada Con Servicios De Mantenimiento (Fideicomiso) | K33: Documento | L33: 11 | M33: -15 | N33: 26 | O33: 29 | P33: 5240000 | Q33: 89497370 | R33: =+AJ33+AK33+AM33+AN33+AP33+AQ33+AS33+AT33+AV33+AW33+AY33+AZ33+BB33+BC33+BE33+BF33 -> 74410467.13 | S33: 0 | T33: 0 | U33: 0 | V33: 0 | W33: 0 | X33: 0 | Y33: 1 | Z33: 0 | AA33: 14 | AB33: 0 | AC33: 0 | AD33: 0 | AE33: 0 | AF33: 14 | AI33: 0 | AJ33: 0 | AK33: 0 | AL33: 0 | AM33: 0 | AO33: 0 | AP33: 0 | AR33: 0 | AS33: 0 | AU33: 84257370 | AV33: 29860632.13 | AX33: 0 | AY33: 0 | BA33: 0 | BB33: 44549835 | BD33: 0 | BE33: 0
A34: 203 | B34: 11 | C34: 01 | D34: 000 | E34: 001 | F34: 000 | I34: 017-001-0003 | J34: Red Vial Pavimentada Con Servicios De Mantenimiento (Fideicomiso) | K34: Documento | L34: 11 | M34: -15 | N34: 26 | O34: 29 | P34: 5240000 | Q34: 89497370 | R34: =+AJ34+AK34+AM34+AN34+AP34+AQ34+AS34+AT34+AV34+AW34+AY34+AZ34+BB34+BC34+BE34+BF34 -> 74410467.13 | S34: 0 | T34: 0 | U34: 0 | V34: 0 | W34: 0 | X34: 0 | Y34: 1 | Z34: 0 | AA34: 14 | AB34: 0 | AC34: 0 | AD34: 0 | AE34: 0 | AF34: 14 | AG34: 0 | AH34: 0 | AI34: 0 | AJ34: 0 | AL34: 0 | AM34: 0 | AO34: 0 | AP34: 0 | AR34: 0 | AS34: 0 | AU34: 84257370 | AV34: 29860632.13 | AX34: 0 | AY34: 0 | BA34: 0 | BB34: 44549835 | BD34: 0 | BE34: 0
A35: 203 | B35: 11 | C35: 01 | D35: 000 | E35: 002 | F35: 000 | G35: 017-002 | H35: Red Vial Pavimentada Con Mantenimiento (Ejecución Normal) | K35: Kilómetro | L35: 6453 | M35: -2 | N35: 6455 | O35: 1113 | P35: 793952274 | Q35: 797078821 | R35: 248759094.7 | S35: -170 | T35: 0 | U35: 0 | V35: 0 | W35: 79 | X35: 137 | Y35: 90 | Z35: 400 | AA35: 3 | AB35: 76 | AC35: 0 | AD35: 55 | AE35: 0 | AF35: 273 | AI35: 0 | AJ35: 6569490.93 | AK35: 0 | AL35: 0 | AM35: 0 | AN35: 0 | AO35: -99523 | AP35: 13588143.88 | AQ35: 0 | AR35: 0 | AS35: 42364617.95 | AT35: 0 | AU35: -57002126 | AV35: 42211102.24 | AX35: 60453514 | AY35: 44333128.61 | BA35: 0 | BB35: 85232255.63 | BD35: -225318 | BE35: 14460355.41
A36: 203 | B36: 11 | C36: 01 | D36: 000 | E36: 002 | F36: 000 | I36: 017-002-0001 | J36: Red Vial Pavimentada Con Mantenimiento (Ejecución Normal) | K36: Kilómetro | L36: 6453 | M36: -2 | N36: 6455 | O36: 1132 | P36: 793952274 | Q36: 797078821 | R36: 248759094.7 | S36: -170 | T36: 0 | U36: 0 | V36: 0 | W36: 79 | X36: 137 | Y36: 90 | Z36: 400 | AA36: 3 | AB36: 76 | AC36: 0 | AD36: 55 | AE36: 0 | AF36: 273 | AG36: 0 | AH36: 19 | AI36: 0 | AJ36: 6569490.93 | AL36: 0 | AM36: 0 | AO36: -99523 | AP36: 13588143.88 | AR36: 0 | AS36: 42364617.95 | AU36: -57002126 | AV36: 42211102.24 | AX36: 60453514 | AY36: 44333128.61 | BA36: 0 | BB36: 85232255.63 | BD36: -225318 | BE36: 14460355.41
A37: 203 | B37: 11 | C37: 00 | D37: 000 | E37: 001 | F37: 000 | G37: 017-003 | H37: Dirección Y Coordinación | K37: Evento | L37: 120 | M37: -178 | N37: 298 | O37: 6 | P37: 27407860 | Q37: 27407860 | R37: 10970082.91 | S37: 178 | T37: 0 | U37: 0 | V37: 0 | W37: 0 | X37: 0 | Y37: 0 | Z37: 0 | AA37: 0 | AB37: 0 | AC37: 0 | AD37: 1 | AE37: 0 | AF37: 5 | AI37: 0 | AJ37: 0 | AK37: 1154079.2 | AL37: 0 | AM37: 68952.47 | AN37: 919443.66 | AO37: 0 | AP37: 168913.79 | AQ37: 992669.88 | AR37: 0 | AS37: 215441.41 | AT37: 1062179.98 | AU37: 0 | AV37: 224174.11 | AW37: 1077250 | AX37: 0 | AY37: 542630.49 | AZ37: 1205219.1 | BA37: 0 | BB37: 579237.07 | BC37: =+BC38 -> 1237566.57 | BD37: 0 | BE37: 571813.08 | BF37: 950512.1
A38: 203 | B38: 11 | C38: 00 | D38: 000 | E38: 001 | F38: 000 | I38: 017-003-0001 | J38: Dirección Y Coordinación | K38: Evento | L38: 120 | M38: -178 | N38: 298 | O38: 10 | P38: 27407860 | Q38: 27407860 | R38: 10970082.91 | S38: 178 | T38: 0 | U38: 0 | V38: 0 | W38: 0 | X38: 0 | Y38: 0 | Z38: 0 | AA38: 0 | AB38: 0 | AC38: 0 | AD38: 1 | AE38: 0 | AF38: 5 | AG38: 0 | AH38: 4 | AI38: 0 | AJ38: 0 | AK38: 1154079.2 | AL38: 0 | AM38: 68952.47 | AN38: 919443.66 | AO38: 0 | AP38: 168913.79 | AQ38: 992669.88 | AR38: 0 | AS38: 215441.41 | AT38: 1062179.98 | AU38: 0 | AV38: 224174.11 | AW38: 1077250 | AX38: 0 | AY38: 542630.49 | AZ38: 1205219.1 | BA38: 0 | BB38: 579237.07 | BC38: 1237566.57 | BD38: 0 | BE38: 571813.08 | BF38: 950512.1
A39: 203 | B39: 11 | C39: 02 | D39: 000 | E39: 001 | F39: 000 | G39: 017-006 | H39: Red Vial Rural Con Servicios De Mantenimiento (Fideicomiso) | K39: Documento | L39: 10 | M39: 0 | N39: 10 | O39: 0 | P39: 5000000 | Q39: 5000000 | R39: 0 | S39: 0 | T39: 0 | U39: 0 | V39: 0 | W39: 0 | X39: 0 | Y39: 0 | Z39: 0 | AA39: 0 | AB39: 0 | AC39: 0 | AD39: 0 | AE39: 0 | AF39: 0 | AI39: 0 | AJ39: 0 | AK39: 0 | AL39: 0 | AM39: 0 | AO39: 0 | AP39: 0 | AR39: 0 | AS39: 0 | AU39: 0 | AV39: 0 | AX39: 0 | AY39: 0 | BA39: 0 | BB39: 0 | BD39: 0 | BE39: 0
A40: 203 | B40: 11 | C40: 02 | D40: 000 | E40: 001 | F40: 000 | I40: 017-006-0002 | J40: Red Vial Rural Con Servicios De Mantenimiento (Fideicomiso) | K40: Documento | L40: 10 | M40: 0 | N40: 10 | O40: 0 | P40: 5000000 | Q40: 5000000 | R40: 0 | S40: 0 | T40: 0 | U40: 0 | V40: 0 | W40: 0 | X40: 0 | Y40: 0 | Z40: 0 | AA40: 0 | AB40: 0 | AC40: 0 | AD40: 0 | AE40: 0 | AF40: 0 | AG40: 0 | AH40: 0 | AI40: 0 | AJ40: 0 | AL40: 0 | AM40: 0 | AO40: 0 | AP40: 0 | AR40: 0 | AS40: 0 | AU40: 0 | AV40: 0 | AX40: 0 | AY40: 0 | BA40: 0 | BB40: 0 | BD40: 0 | BE40: 0
A41: 203 | B41: 11 | C41: 02 | D41: 000 | E41: 002 | F41: 000 | G41: 017-007 | H41: Red Vial Terciaria Con Mantenimiento (Ejecución Normal) | K41: Kilómetro | L41: 5349 | M41: -560 | N41: 5909 | O41: 135 | P41: 550792866 | Q41: 463408949 | R41: 9304920.86 | S41: 558 | T41: 0 | U41: 0 | V41: 0 | W41: 1 | X41: 78 | Y41: 0 | Z41: 0 | AA41: 1 | AB41: 34 | AC41: 0 | AD41: 20 | AE41: 0 | AF41: 1 | AI41: 0 | AJ41: 56334.81 | AK41: 0 | AL41: 0 | AM41: 0 | AN41: 0 | AO41: 99523 | AP41: 5462127.89 | AQ41: 0 | AR41: 0 | AS41: 0 | AT41: 0 | AU41: -27255244 | AV41: 1971999.56 | AX41: -60453514 | AY41: 5222.67 | BA41: 0 | BB41: 1776086.33 | BD41: 225318 | BE41: 33149.6
A42: 203 | B42: 11 | C42: 02 | D42: 000 | E42: 002 | F42: 000 | I42: 017-007-0001 | J42: Red Vial Terciaria Con Mantenimiento (Ejecución Normal) | K42: Kilómetro | L42: 5349 | M42: -560 | N42: 5909 | O42: 135 | P42: 550792866 | Q42: 463408949 | R42: 9304920.86 | S42: 558 | T42: 0 | U42: 0 | V42: 0 | W42: 1 | X42: 78 | Y42: 0 | Z42: 0 | AA42: 1 | AB42: 34 | AC42: 0 | AD42: 20 | AE42: 0 | AF42: 1 | AG42: 0 | AH42: 0 | AI42: 0 | AJ42: 56334.81 | AL42: 0 | AM42: 0 | AO42: 99523 | AP42: 5462127.89 | AR42: 0 | AS42: 0 | AU42: -27255244 | AV42: 1971999.56 | AX42: -60453514 | AY42: 5222.67 | BA42: 0 | BB42: 1776086.33 | BD42: 225318 | BE42: 33149.6
A43: 204 | B43: 12 | C43: 00 | D43: 000 | E43: 001 | F43: 000 | G43: 018-005 | H43: Dirección Y Coordinación | K43: Evento | L43: 85 | M43: -172 | N43: 257 | O43: 153 | P43: 12264729 | Q43: 11624362 | R43: 6907950.91 | S43: 172 | T43: 75 | U43: 0 | V43: 0 | W43: 0 | X43: 0 | Y43: 0 | Z43: 0 | AA43: 0 | AB43: 0 | AC43: 0 | AD43: 0 | AE43: 0 | AF43: 78 | AI43: -692765 | AJ43: 142003.03 | AK43: 918573.03 | AL43: 0 | AM43: -91883.18 | AN43: 884768.59 | AO43: 0 | AP43: 98336.96 | AQ43: 651533.23 | AR43: 148002 | AS43: 92559.81 | AT43: 719768.09 | AU43: 0 | AV43: 306625.05 | AW43: 811119.61 | AX43: -45259 | AY43: 221443.84 | AZ43: 679209.65 | BA43: -50075 | BB43: 103076.29 | BC43: 665453.11 | BD43: -270 | BE43: 83604.34 | BF43: 621759.46
A44: 204 | B44: 12 | C44: 00 | D44: 000 | E44: 001 | F44: 000 | I44: 018-005-0001 | J44: Dirección Y Coordinación | K44: Evento | L44: 85 | M44: -172 | N44: 257 | O44: 153 | P44: 12264729 | Q44: 11624362 | R44: 6907950.91 | S44: 172 | T44: 75 | U44: 0 | V44: 0 | W44: 0 | X44: 0 | Y44: 0 | Z44: 0 | AA44: 0 | AB44: 0 | AC44: 0 | AD44: 0 | AE44: 0 | AF44: 78 | AG44: 0 | AH44: 0 | AI44: -692765 | AJ44: 142003.03 | AK44: 918573.03 | AL44: 0 | AM44: -91883.18 | AN44: 884768.59 | AO44: 0 | AP44: 98336.96 | AQ44: 651533.23 | AR44: 148002 | AS44: 92559.81 | AT44: 719768.09 | AU44: 0 | AV44: 306625.05 | AW44: 811119.61 | AX44: -45259 | AY44: 221443.84 | AZ44: 679209.65 | BA44: -50075 | BB44: 103076.29 | BC44: 665453.11 | BD44: -270 | BE44: 83604.34 | BF44: 621759.46
A45: 204 | B45: 12 | C45: 00 | D45: 000 | E45: 002 | F45: 000 | G45: 018-006 | H45: Regulación De Transporte Extraurbano De Pasajeros Y Carga Por Carretera | K45: Documento | L45: 4595 | M45: -6000 | N45: 10595 | O45: 3181 | P45: 2686541 | Q45: 3326908 | R45: 1552194.32 | S45: 6000 | T45: 105 | U45: 0 | V45: 125 | W45: 0 | X45: 332 | Y45: 0 | Z45: 263 | AA45: 0 | AB45: 195 | AC45: 0 | AD45: 738 | AE45: 0 | AF45: 733 | AH45: 690 | AI45: 692765 | AJ45: 104031.9 | AK45: 44376.56 | AL45: 0 | AM45: 69420 | AN45: 30251.04 | AO45: 0 | AP45: 290269.32 | AQ45: 30251.04 | AR45: -148002 | AS45: 132474.4 | AT45: 30251.04 | AU45: 0 | AV45: 138143 | AW45: 30251.04 | AX45: 45259 | AY45: 106279.02 | AZ45: 30251.04 | BA45: 50075 | BB45: 261617.32 | BC45: 58502.08 | BD45: 270 | BE45: 165574.48 | BF45: 30251.04
A46: 204 | B46: 12 | C46: 00 | D46: 000 | E46: 002 | F46: 000 | I46: 018-006-0001 | J46: Personas Jurídicas O Individuales Con Licencias Otorgadas De Transporte Extraurbano De Pasajeros Por Carretera | K46: Documento | L46: 525 | M46: 0 | N46: 525 | O46: 368 | P46: 1031212 | Q46: 772120 | R46: 431860.25 | S46: 0 | T46: 40 | U46: 0 | V46: 5 | W46: 0 | X46: 40 | Y46: 0 | Z46: 40 | AA46: 0 | AB46: 75 | AC46: 0 | AD46: 40 | AE46: 0 | AF46: 88 | AG46: 0 | AH46: 40 | AI46: -186435 | AJ46: 99931.5 | AL46: 0 | AM46: -25000 | AO46: 0 | AP46: 183168.12 | AR46: -123002 | AS46: 9104 | AU46: 0 | AV46: 9189 | AX46: 0 | AY46: 10822.02 | BA46: 50075 | BB46: 104671.01 | BD46: 270 | BE46: 39974.6
A47: 204 | B47: 12 | C47: 00 | D47: 000 | E47: 002 | F47: 000 | I47: 018-006-0002 | J47: Personas Jurídicas O Individuales Con Permisos Temporales Otorgados Para El Transporte Extraurbano De Pasajeros Por Carretera | K47: Documento | L47: 1575 | M47: -200 | N47: 1775 | O47: 450 | P47: 183000 | Q47: 183000 | R47: 0 | S47: 200 | T47: 0 | U47: 0 | V47: 0 | W47: 0 | X47: 0 | Y47: 0 | Z47: 0 | AA47: 0 | AB47: 0 | AC47: 0 | AD47: 150 | AE47: 0 | AF47: 150 | AG47: 0 | AH47: 150 | AI47: 0 | AJ47: 0 | AL47: 0 | AM47: 0 | AO47: 0 | AP47: 0 | AR47: 0 | AS47: 0 | AU47: 0 | AV47: 0 | AX47: 0 | AY47: 0 | BA47: 0 | BB47: 0 | BD47: 0 | BE47: 0
A48: 204 | B48: 12 | C48: 00 | D48: 000 | E48: 002 | F48: 000 | I48: 018-006-0003 | J48: Personas Jurídicas O Individuales Con Licencias Modificadas De Transporte Extraurbano De Pasajeros Por Carretera | K48: Documento | L48: 1550 | M48: -500 | N48: 2050 | O48: 1021 | P48: 728318 | Q48: 1652777 | R48: 945324.88 | S48: 500 | T48: 0 | U48: 0 | V48: 120 | W48: 0 | X48: 112 | Y48: 0 | Z48: 128 | AA48: 0 | AB48: 120 | AC48: 0 | AD48: 200 | AE48: 0 | AF48: 141 | AG48: 0 | AH48: 200 | AI48: 879200 | AJ48: 0 | AK48: 44376.56 | AL48: 0 | AM48: 94420 | AN48: 30251.04 | AO48: 0 | AP48: 87920 | AQ48: 30251.04 | AR48: 0 | AS48: 100920 | AT48: 30251.04 | AU48: 0 | AV48: 94420 | AW48: 30251.04 | AX48: 45259 | AY48: 94420 | AZ48: 30251.04 | BA48: 0 | BB48: 94420 | BC48: 58502.08 | BD48: 0 | BE48: 94420 | BF48: 30251.04
A49: 204 | B49: 12 | C49: 00 | D49: 000 | E49: 002 | F49: 000 | I49: 018-006-0004 | J49: Operativos De Control Fijo Del Servicio De Transporte Extraurbano | K49: Evento | L49: 1470 | M49: -400 | N49: 1870 | O49: 750 | P49: 369011 | Q49: 369011 | R49: 152468.19 | S49: 400 | T49: 0 | U49: 0 | V49: 0 | W49: 0 | X49: 38 | Y49: 0 | Z49: 82 | AA49: 0 | AB49: 170 | AC49: 0 | AD49: 157 | AE49: 0 | AF49: 157 | AG49: 0 | AH49: 146 | AI49: 0 | AJ49: 0 | AL49: 0 | AM49: 0 | AO49: 0 | AP49: 7596 | AR49: 0 | AS49: 16750 | AU49: 0 | AV49: 33379 | AX49: 0 | AY49: 1037 | BA49: 0 | BB49: 62526.31 | BD49: 0 | BE49: 31179.88
A50: 204 | B50: 12 | C50: 00 | D50: 000 | E50: 002 | F50: 000 | I50: 018-006-0005 | J50: Personas Jurídicas O Individuales Con Permisos Expresos Para El Transporte Extraurbano De Pasajeros Por Carretera | K50: Documento | L50: 420 | M50: -5100 | N50: 5520 | O50: 1342 | P50: 350000 | Q50: 350000 | R50: 22541 | S50: 5100 | T50: 65 | U50: 0 | V50: 0 | W50: 0 | X50: 180 | Y50: 0 | Z50: 95 | AA50: 0 | AB50: 0 | AC50: 0 | AD50: 348 | AE50: 0 | AF50: 354 | AG50: 0 | AH50: 300 | AI50: 0 | AJ50: 4100.4 | AL50: 0 | AM50: 0 | AO50: 0 | AP50: 11585.2 | AR50: 0 | AS50: 5700.4 | AU50: 0 | AV50: 1155 | AX50: 0 | AY50: 0 | BA50: 0 | BB50: 0 | BD50: 0 | BE50: 0
A51: 204 | B51: 12 | C51: 00 | D51: 000 | E51: 002 | F51: 000 | I51: 018-006-0007 | J51: Personas Jurídicas O Individuales Con Constancias De Registro De Pilotos Para El Transporte Extraurbano De Pasajeros Por Carretera | K51: Documento | L51: 525 | M51: -200 | N51: 725 | O51: 0 | P51: 25000 | Q51: 0 | R51: 0 | S51: 200 | T51: 0 | U51: 0 | V51: 0 | W51: 0 | X51: 0 | Y51: 0 | Z51: 0 | AA51: 0 | AB51: 0 | AC51: 0 | AD51: 0 | AE51: 0 | AF51: 0 | AG51: 0 | AH51: 0 | AI51: 0 | AJ51: 0 | AL51: 0 | AM51: 0 | AO51: 0 | AP51: 0 | AR51: -25000 | AS51: 0 | AU51: 0 | AV51: 0 | AX51: 0 | AY51: 0 | BA51: 0 | BB51: 0 | BD51: 0 | BE51: 0
A52: 205 | B52: 99 | C52: 00 | D52: 000 | E52: 002 | F52: 000 | G52: 000-005 | H52: Personas Jurídicas Beneficiadas Con Aportes Y/O Cuotas Para Comunicaciones | K52: Aporte | L52: 1 | M52: -1 | N52: 2 | O52: 0 | P52: 450000 | Q52: 450000 | R52: 170287.21 | S52: 1 | T52: 0 | U52: 0 | V52: 0 | W52: 0 | X52: 0 | Y52: 0 | Z52: 0 | AA52: 0 | AB52: 0 | AC52: 0 | AD52: 0 | AE52: 0 | AF52: 0 | AI52: 0 | AJ52: 0 | AK52: 0 | AL52: 0 | AM52: 0 | AO52: 0 | AP52: 0 | AR52: 0 | AS52: 403449.93 | AU52: 0 | AV52: -403449.93 | AX52: 0 | AY52: 170287.21 | BA52: 0 | BB52: 0 | BD52: 0 | BE52: 0
A53: 205 | B53: 99 | C53: 00 | D53: 000 | E53: 002 | F53: 000 | I53: 000-005-0001 | J53: Personas Jurídicas Beneficiadas Con Aportes Y/O Cuotas Para Comunicaciones | K53: Aporte | L53: 1 | M53: -1 | N53: 2 | O53: 0 | P53: 450000 | Q53: 450000 | R53: 170287.21 | S53: 1 | T53: 0 | U53: 0 | V53: 0 | W53: 0 | X53: 0 | Y53: 0 | Z53: 0 | AA53: 0 | AB53: 0 | AC53: 0 | AD53: 0 | AE53: 0 | AF53: 0 | AG53: 0 | AH53: 0 | AI53: 0 | AJ53: 0 | AL53: 0 | AM53: 0 | AO53: 0 | AP53: 0 | AR53: 0 | AS53: 403449.93 | AU53: 0 | AV53: -403449.93 | AX53: 0 | AY53: 170287.21 | BA53: 0 | BB53: 0 | BD53: 0 | BE53: 0
A54: 205 | B54: 13 | C54: 00 | D54: 000 | E54: 001 | F54: 000 | G54: 000-013 | H54: Dirección Y Coordinación | K54: Evento | L54: 990 | M54: -786 | N54: 1776 | O54: 1497 | P54: =+P55 -> 144895709 | Q54: 56 | R54: 85606820.94 | S54: 786 | T54: 0 | U54: 0 | V54: 741 | W54: 0 | X54: 47 | Y54: 0 | Z54: 50 | AA54: 0 | AB54: 559 | AC54: 0 | AD54: 50 | AE54: 0 | AF54: 50 | AI54: 0 | AJ54: 1571707.34 | AK54: 5896561.8 | AL54: 0 | AM54: 1736690.77 | AN54: 5449773.88 | AO54: 0 | AP54: 2054724.09 | AQ54: 5595839.14 | AR54: 0 | AS54: 26341909.74 | AT54: 4903948.84 | AU54: -881155 | AV54: 3072523.22 | AW54: 4765679.06 | AX54: -3116 | AY54: 4776244.44 | AZ54: 4911193.96 | BA54: -161500 | BB54: 1617061.73 | BC54: 5520736.01 | BD54: 0 | BE54: 2137689.42 | BF54: 5254537.5
A55: 205 | B55: 13 | C55: 00 | D55: 000 | E55: 001 | F55: 000 | I55: 000-013-0001 | J55: Dirección Y Coordinación | K55: Evento | L55: 990 | M55: -1034 | N55: 2024 | O55: 1745 | P55: 144895709 | Q55: 143849938 | R55: 85606820.94 | S55: 786 | T55: 0 | U55: 0 | V55: 741 | W55: 0 | X55: 47 | Y55: 0 | Z55: 50 | AA55: 0 | AB55: 559 | AC55: 0 | AD55: 50 | AE55: 0 | AF55: 50 | AG55: 248 | AH55: 0 | AI55: 0 | AJ55: 1571707.34 | AK55: 5896561.8 | AL55: 0 | AM55: 1736690.77 | AN55: 5449773.88 | AO55: 0 | AP55: 2054724.09 | AQ55: 5595839.14 | AR55: 0 | AS55: 26341909.74 | AT55: 4903948.84 | AU55: -881155 | AV55: 3072523.22 | AW55: 4765679.06 | AX55: -3116 | AY55: 4776244.44 | AZ55: 4911193.96 | BA55: -161500 | BB55: 1617061.73 | BC55: 5520736.01 | BD55: 0 | BE55: 2137689.42 | BF55: 5254537.5
A56: 205 | B56: 13 | C56: 00 | D56: 000 | E56: 002 | F56: 000 | G56: 000-014 | H56: Aeronaves Con Servicios De Aeronavegabilidad | K56: Aeronave | L56: 1676 | M56: -3865 | N56: 5541 | O56: 3122 | P56: 74253515 | Q56: 75293331 | R56: 26768657.08 | S56: 0 | T56: =+T61+T62+T63 -> 0 | U56: 0 | V56: =+V61+V62+V63 -> 896 | W56: 0 | X56: =+X61+X62+X63 -> 454 | Y56: 0 | Z56: =+Z61+Z62+Z63 -> 441 | AA56: 0 | AB56: =+AB61+AB62+AB63 -> 457 | AC56: 0 | AD56: =+AD61+AD62+AD63 -> 414 | AE56: 0 | AF56: =+AF61+AF62+AF63 -> 460 | AH56: 0 | AI56: 0 | AJ56: 301318.1 | AK56: 1561731.3 | AL56: 0 | AM56: -64784.55 | AN56: 1433470 | AO56: 0 | AP56: 1589609.95 | AQ56: 1418470 | AR56: 0 | AS56: 3132866.46 | AT56: 2227282.17 | AU56: 881155 | AV56: 1199838.66 | AW56: 2185370 | AX56: 3116 | AY56: =SUBTOTAL(9,AY57:AY63) -> 2464744.75 | AZ56: =SUBTOTAL(9,AZ57:AZ63) -> 2252136.74 | BA56: 155545 | BB56: 1128403.1 | BC56: 2364477.44 | BD56: 0 | BE56: 1375513.24 | BF56: 2198209.72
A57: 205 | B57: 13 | C57: 00 | D57: 000 | E57: 002 | F57: 000 | I57: 000-014-0001 | J57: Pasajeros Que Ingresan Por Medio De Transporte Aéreo Con Servicios De Desembarque | K57: Persona | L57: 291179 | M57: -1589874 | N57: 1881053 | O57: 1067936 | P57: 18478387 | Q57: 18760818 | R57: 9203973.73 | S57: 1589874 | T57: 0 | U57: 0 | V57: 272839 | W57: 0 | X57: 150711 | Y57: 0 | Z57: 163121 | AA57: 0 | AB57: 145737 | AC57: 0 | AD57: 162126 | AE57: 0 | AF57: 173402 | AG57: 0 | AH57: 0 | AI57: 0 | AJ57: 22657.5 | AK57: 889926.03 | AL57: 0 | AM57: -20242.5 | AN57: 816838.51 | AO57: 0 | AP57: 0 | AQ57: 808291.02 | AR57: 0 | AS57: 0 | AT57: 1269178.88 | AU57: 200000 | AV57: 0 | AW57: 1245295.94 | AX57: 2431 | AY57: 163466 | AZ57: =1283341.83-0.19+1 -> 1283342.64 | BA57: 80000 | BB57: 0 | BC57: 1347357.27 | BD57: 0 | BE57: 125250 | BF57: 1252612.44
A58: 205 | B58: 13 | C58: 00 | D58: 000 | E58: 002 | F58: 000 | I58: 000-014-0002 | J58: Pasajeros Que Egresan Por Medio De Transporte Aéreo Con Servicios De Embarque | K58: Persona | L58: 1676801 | M58: -186826 | N58: 1863627 | O58: 1069793 | P58: 54283348 | Q58: 55040733 | R58: 17372999.85 | S58: 186826 | T58: 0 | U58: 0 | V58: 279002 | W58: 0 | X58: 153513 | Y58: 0 | Z58: 164213 | AA58: 0 | AB58: 149000 | AC58: 0 | AD58: 156555 | AE58: 0 | AF58: 167510 | AG58: 0 | AH58: 0 | AI58: 0 | AJ58: 278660.6 | AK58: 671805.27 | AL58: 0 | AM58: -44542.05 | AN58: 616631.49 | AO58: 0 | AP58: 1589609.95 | AQ58: 610178.98 | AR58: 0 | AS58: 3131658.96 | AT58: 958103.29 | AU58: 681155 | AV58: 1199838.66 | AW58: 940074.06 | AX58: 685 | AY58: 2199802.75 | AZ58: 968794.1 | BA58: 75545 | BB58: 1128403.1 | BC58: 1017120.17 | BD58: 0 | BE58: 1161263.24 | BF58: 945597.28
A59: 205 | B59: 13 | C59: 00 | D59: 000 | E59: 002 | F59: 000 | I59: 000-014-0003 | J59: Carga Embarcada Para La Exportación Aérea | K59: Kilogramo | L59: 86739745 | M59: 57447667 | N59: 29292078 | O59: 14735439 | P59: 591375 | Q59: 591375 | R59: 191683.5 | S59: -57447667 | T59: 0 | U59: 0 | V59: 4174492 | W59: 0 | X59: 1927292 | Y59: 0 | Z59: 2000521 | AA59: 0 | AB59: 2155498 | AC59: 0 | AD59: 2106840 | AE59: 0 | AF59: 2370796 | AG59: 0 | AH59: 0 | AI59: 0 | AJ59: 0 | AL59: 0 | AM59: 0 | AO59: 0 | AP59: 0 | AR59: 0 | AS59: 1207.5 | AU59: 0 | AV59: 0 | AX59: 0 | AY59: 101476 | BA59: 0 | BB59: 0 | BD59: 0 | BE59: 89000
A60: 205 | B60: 13 | C60: 00 | D60: 000 | E60: 002 | F60: 000 | I60: 000-014-0004 | J60: Carga Desembarcada Para La Importación Aérea | K60: Kilogramo | L60: 33930296 | M60: 9383660 | N60: 24546636 | O60: 13954719 | P60: 264205 | Q60: 264205 | R60: 0 | S60: -9383660 | T60: 0 | U60: 0 | V60: 3806607 | W60: 0 | X60: 2167626 | Y60: 0 | Z60: 1900453 | AA60: 0 | AB60: 2031356 | AC60: 0 | AD60: 1976731 | AE60: 0 | AF60: 2071946 | AG60: 0 | AH60: 0 | AI60: 0 | AJ60: 0 | AL60: 0 | AM60: 0 | AO60: 0 | AP60: 0 | AR60: 0 | AS60: 0 | AU60: 0 | AV60: 0 | AX60: 0 | AY60: 0 | BA60: 0 | BB60: 0 | BD60: 0 | BE60: 0
A61: 205 | B61: 13 | C61: 00 | D61: 000 | E61: 002 | F61: 000 | I61: 000-014-0005 | J61: Aeronaves Con Inspección Técnica | K61: Aeronave | L61: 297 | M61: -234 | N61: 531 | O61: 270 | P61: 206100 | Q61: 206100 | R61: 0 | S61: 234 | T61: 0 | U61: 0 | V61: 72 | W61: 0 | X61: 42 | Y61: 0 | Z61: 35 | AA61: 0 | AB61: 43 | AC61: 0 | AD61: 31 | AE61: 0 | AF61: 47 | AG61: 0 | AH61: 0 | AI61: 0 | AJ61: 0 | AL61: 0 | AM61: 0 | AO61: 0 | AP61: 0 | AR61: 0 | AS61: 0 | AU61: 0 | AV61: 0 | AX61: 0 | AY61: 0 | BA61: 0 | BB61: 0 | BD61: 0 | BE61: 0
A62: 205 | B62: 13 | C62: 00 | D62: 000 | E62: 002 | F62: 000 | I62: 000-014-0006 | J62: Aeronaves Nacionales Y Extranjeras Con Certificado De Matrícula Autorizada Y Renovada | K62: Aeronave | L62: 135 | M62: -75 | N62: 210 | O62: 86 | P62: 250275 | Q62: 250275 | R62: 0 | S62: 75 | T62: 0 | U62: 0 | V62: 24 | W62: 0 | X62: 12 | Y62: 0 | Z62: 6 | AA62: 0 | AB62: 14 | AC62: 0 | AD62: 17 | AE62: 0 | AF62: 13 | AG62: 0 | AH62: 0 | AI62: 0 | AJ62: 0 | AL62: 0 | AM62: 0 | AO62: 0 | AP62: 0 | AR62: 0 | AS62: 0 | AU62: 0 | AV62: 0 | AX62: 0 | AY62: 0 | BA62: 0 | BB62: 0 | BD62: 0 | BE62: 0
A63: 205 | B63: 13 | C63: 00 | D63: 000 | E63: 002 | F63: 000 | I63: 000-014-0007 | J63: Aeronaves Con Servicios De Pernocte En Rampa Internacional Del Aeropuerto | K63: Aeronave | L63: 1244 | M63: -3556 | N63: 4800 | O63: 2766 | P63: 179825 | Q63: 179825 | R63: 0 | S63: 3556 | T63: 0 | U63: 0 | V63: 800 | W63: 0 | X63: 400 | Y63: 0 | Z63: 400 | AA63: 0 | AB63: 400 | AC63: 0 | AD63: 366 | AE63: 0 | AF63: 400 | AG63: 0 | AH63: 0 | AI63: 0 | AJ63: 0 | AL63: 0 | AM63: 0 | AO63: 0 | AP63: 0 | AR63: 0 | AS63: 0 | AU63: 0 | AV63: 0 | AX63: 0 | AY63: 0 | BA63: 0 | BB63: 0 | BD63: 0 | BE63: 0
A64: 205 | B64: 13 | C64: 00 | D64: 000 | E64: 003 | F64: 000 | G64: 000-016 | H64: Aeronaves Con Servicios Operativos De Aviación Y Soporte Técnico | K64: Aeronave | L64: 0 | M64: -15562 | N64: 15562 | O64: 55713 | P64: =+P65 -> 13660761 | Q64: 66 | R64: 7867841.73 | S64: 15562 | T64: 0 | U64: 0 | V64: 15924 | W64: 0 | X64: 8165 | Y64: 0 | Z64: 8164 | AA64: 0 | AB64: 7875 | AC64: 0 | AD64: 7716 | AE64: 0 | AF64: 7869 | AI64: 0 | AJ64: 0 | AK64: 954371 | AL64: 0 | AM64: 0 | AN64: 920637.93 | AO64: 0 | AP64: 0 | AQ64: 941465.52 | AR64: 0 | AS64: 0 | AT64: 907500 | AU64: 0 | AV64: 0 | AW64: 910500 | AX64: 0 | AY64: 0 | AZ64: 1094047.28 | BA64: 0 | BB64: 0 | BC64: 1069660 | BD64: 0 | BE64: 0 | BF64: 1069660
A65: 205 | B65: 13 | C65: 00 | D65: 000 | E65: 003 | F65: 000 | I65: 000-016-0001 | J65: Aeronaves Con Servicios Operativos De Aviación Y Soporte Técnico | K65: Aeronave | L65: 84696 | M65: -15562 | N65: 100258 | O65: 55713 | P65: 13660761 | Q65: 13660761 | R65: 7867841.73 | S65: 15562 | T65: 0 | U65: 0 | V65: 15924 | W65: 0 | X65: 8165 | Y65: 0 | Z65: 8164 | AA65: 0 | AB65: 7875 | AC65: 0 | AD65: 7716 | AE65: 0 | AF65: 7869 | AG65: 0 | AH65: 0 | AI65: 0 | AJ65: 0 | AK65: 954371 | AL65: 0 | AM65: 0 | AN65: 920637.93 | AO65: 0 | AP65: 0 | AQ65: 941465.52 | AR65: 0 | AS65: 0 | AT65: 907500 | AU65: 0 | AV65: 0 | AW65: 910500 | AX65: 0 | AY65: 0 | AZ65: 1094047.28 | BA65: 0 | BB65: 0 | BC65: 1069660 | BD65: 0 | BE65: 0 | BF65: 1069660
A66: 205 | B66: 13 | C66: 00 | D66: 000 | E66: 004 | F66: 000 | G66: 000-017 | H66: Infraestructura De La Red Aeroportuaria Nacional Con Servicios De Mantenimiento | K66: Metro cuadrado | L66: 0 | M66: 613759 | N66: -613759 | O66: 68281 | P66: =+P67 -> 16133540 | Q66: =+Q67 -> 16139495 | R66: 2225680.16 | S66: -613759 | T66: 0 | U66: 0 | V66: 19138 | W66: 0 | X66: 10030 | Y66: 0 | Z66: 9859 | AA66: 0 | AB66: 9790 | AC66: 0 | AD66: 10555 | AE66: 0 | AF66: 8909 | AI66: 0 | AJ66: 76391.45 | AK66: 0 | AL66: 0 | AM66: 27592.33 | AN66: 0 | AO66: 0 | AP66: 55294.94 | AQ66: 0 | AR66: 0 | AS66: 57743.13 | AT66: 0 | AU66: 0 | AV66: 46394.12 | AW66: 0 | AX66: 0 | AY66: 867153.4 | BA66: 5955 | BB66: 517129.15 | BD66: 0 | BE66: 577981.64
A67: 205 | B67: 13 | C67: 00 | D67: 000 | E67: 004 | F67: 000 | I67: 000-017-0001 | J67: Infraestructura De La Red Aeroportuaria Nacional Con Servicios De Mantenimiento | K67: Metro cuadrado | L67: 728874 | M67: 613759 | N67: 115115 | O67: 68281 | P67: 16133540 | Q67: 16139495 | R67: 2225680.16 | S67: -613759 | T67: 0 | U67: 0 | V67: 19138 | W67: 0 | X67: 10030 | Y67: 0 | Z67: 9859 | AA67: 0 | AB67: 9790 | AC67: 0 | AD67: 10555 | AE67: 0 | AF67: 8909 | AG67: 0 | AH67: 0 | AI67: 0 | AJ67: 76391.45 | AL67: 0 | AM67: 27592.33 | AO67: 0 | AP67: 55294.94 | AR67: 0 | AS67: 57743.13 | AU67: 0 | AV67: 46394.12 | AX67: 0 | AY67: 867153.4 | BA67: 5955 | BB67: 517129.15 | BD67: 0 | BE67: 577981.64
A68: 206 | B68: 14 | C68: 00 | D68: 000 | E68: 001 | F68: 000 | G68: 000-018 | H68: Dirección Y Coordinación | K68: Evento | L68: 233 | M68: 33 | N68: 200 | O68: 120 | P68: 214756462 | Q68: 103848301 | R68: 31376060.19 | S68: -45 | T68: 0 | U68: 0 | V68: 0 | W68: 0 | X68: 0 | Y68: 0 | Z68: 0 | AA68: 0 | AB68: 107 | AC68: 0 | AD68: 1 | AE68: 12 | AF68: 0 | AI68: -110908161 | AJ68: 17223313.28 | AK68: 1346016.95 | AL68: 0 | AM68: 12281.97 | AN68: 1047433.02 | AO68: 0 | AP68: 275226.58 | AQ68: 1072920.26 | AR68: 0 | AS68: 380324.19 | AT68: 1149604.34 | AU68: 0 | AV68: 176913.58 | AW68: 1202751.2 | AX68: 0 | AY68: 505806.71 | AZ68: 1202349.98 | BA68: 0 | BB68: 2499697.75 | BC68: 1271386.03 | BD68: 0 | BE68: 744952.29 | BF68: 1265082.06
A69: 206 | B69: 14 | C69: 00 | D69: 000 | E69: 001 | F69: 000 | I69: 000-018-0001 | J69: Dirección Y Coordinación | K69: Evento | L69: 117 | M69: 0 | N69: 117 | O69: 108 | P69: 28177916 | Q69: 28177916 | R69: 12028429.01 | S69: 0 | T69: 0 | U69: 0 | V69: 0 | W69: 0 | X69: 0 | Y69: 0 | Z69: 0 | AA69: 0 | AB69: 107 | AC69: 0 | AD69: 1 | AE69: 0 | AF69: 0 | AG69: 0 | AH69: 0 | AI69: 0 | AJ69: 131568.69 | AK69: 1346016.95 | AL69: 0 | AM69: 12281.97 | AN69: 1047433.02 | AO69: 0 | AP69: 275226.58 | AQ69: 1072920.26 | AR69: 0 | AS69: 380324.19 | AT69: 1149604.34 | AU69: 0 | AV69: 176913.58 | AW69: 1202751.2 | AX69: 0 | AY69: 505806.71 | AZ69: 1202349.98 | BA69: 0 | BB69: 243811.16 | BC69: 1271386.03 | BD69: 0 | BE69: 744952.29 | BF69: 1265082.06
A70: 206 | B70: 14 | C70: 00 | D70: 000 | E70: 001 | F70: 000 | I70: 000-018-0002 | J70: Población Estudiantil Beneficiada Con Equipo Educacional | K70: Persona | L70: 10354 | M70: -11491 | N70: 21845 | O70: 21845 | P70: 5100000 | Q70: 16620390 | R70: 0 | S70: 11491 | T70: 0 | U70: 0 | V70: 0 | W70: 0 | X70: 0 | Y70: 0 | Z70: 0 | AA70: 0 | AB70: 21845 | AC70: 0 | AD70: 0 | AE70: 0 | AF70: 0 | AG70: 0 | AH70: 0 | AI70: 11520390 | AJ70: 0 | AL70: 0 | AM70: 0 | AO70: 0 | AP70: 0 | AR70: 0 | AS70: 0 | AU70: 0 | AV70: 0 | AX70: 0 | AY70: 0 | BA70: 0 | BB70: 0 | BD70: 0 | BE70: 0
A71: 206 | B71: 14 | C71: 00 | D71: 000 | E71: 001 | F71: 000 | I71: 000-018-0003 | J71: Remozamiento De Edificios Públicos | K71: Evento | L71: 116 | M71: 33 | N71: 83 | O71: 12 | P71: 181478546 | Q71: 59049995 | R71: 19347631.18 | S71: -45 | T71: 0 | U71: 0 | V71: 0 | W71: 0 | X71: 0 | Y71: 0 | Z71: 0 | AA71: 0 | AB71: 0 | AC71: 0 | AD71: 0 | AE71: 12 | AF71: 0 | AG71: 0 | AH71: 0 | AI71: -122428551 | AJ71: 17091744.59 | AL71: 0 | AM71: 0 | AO71: 0 | AP71: 0 | AR71: 0 | AS71: 0 | AU71: 0 | AV71: 0 | AX71: 0 | AY71: 0 | BA71: 0 | BB71: 2255886.59 | BD71: 0 | BE71: 0
A72: 206 | B72: 94 | C72: 11 | D72: 000 | E72: 001 | F72: 000 | G72: 000-048 | H72: Intervenciones Realizadas Para La Atención De Daños Provocados Por Depresión Tropical Eta | K72: Documento | L72: 0 | M72: -27 | N72: 27 | O72: 0 | P72: 0 | Q72: 12300957 | R72: 1451876.2 | S72: 27 | T72: 0 | U72: 0 | V72: 0 | W72: 0 | X72: 0 | Y72: 0 | Z72: 0 | AA72: 0 | AB72: 0 | AC72: 0 | AD72: 0 | AE72: 0 | AF72: 0 | AI72: 12300957 | AJ72: 1451876.2 | AK72: 0 | AL72: 0 | AM72: 0 | AO72: 0 | AP72: 0 | AR72: 0 | AS72: 0 | AU72: 0 | AV72: 0 | AX72: 0 | AY72: 0 | BA72: 0 | BB72: 0 | BD72: 0 | BE72: 0
A73: 206 | B73: 94 | C73: 11 | D73: 000 | E73: 001 | F73: 000 | I73: 000-048-0002 | J73: Remozamiento De Edificios Públicos Para La Atención De Daños Provocados Por Depresiones Tropicales | K73: Evento | L73: 0 | M73: -27 | N73: 27 | O73: =SUM(T73:AH73) -> 0 | P73: 0 | Q73: 12300957 | R73: 1451876.2 | S73: 27 | T73: 0 | U73: 0 | V73: 0 | W73: 0 | X73: 0 | Y73: 0 | Z73: 0 | AA73: 0 | AB73: 0 | AC73: 0 | AD73: 0 | AE73: 0 | AF73: 0 | AG73: 0 | AH73: 0 | AI73: 12300957 | AJ73: 1451876.2 | AL73: 0 | AM73: 0 | AO73: 0 | AP73: 0 | AR73: 0 | AS73: 0 | AU73: 0 | AV73: 0 | AX73: 0 | AY73: 0 | BA73: 0 | BB73: 0 | BD73: 0 | BE73: 0
A74: 206 | B74: 94 | C74: 14 | D74: 000 | E74: 001 | F74: 000 | G74: 000-049 | H74: Intervenciones Realizadas Para La Atención De La Emergencia Por Época Lluviosa, Temporada Ciclónica Y Sistema De Baja Presión | K74: Documento | L74: 0 | M74: -2 | N74: 2 | O74: 0 | P74: 0 | Q74: 330983 | R74: 0 | S74: 2 | T74: 0 | U74: 0 | V74: 0 | W74: 0 | X74: 0 | Y74: 0 | Z74: 0 | AA74: 0 | AB74: 0 | AC74: 0 | AD74: 0 | AE74: 0 | AF74: 0 | AI74: 330983 | AJ74: 0 | AK74: 0 | AL74: 0 | AM74: 0 | AO74: 0 | AP74: 0 | AR74: 0 | AS74: 0 | AU74: 0 | AV74: 0 | AX74: 0 | AY74: 0 | BA74: 0 | BB74: 0 | BD74: 0 | BE74: 0
A75: 206 | B75: 94 | C75: 14 | D75: 000 | E75: 001 | F75: 000 | I75: 000-049-0001 | J75: Intervenciones Realizadas Para La Atención De La Emergencia Por Época Lluviosa, Temporada Ciclónica Y Sistema De Baja Presión | K75: Documento | L75: 0 | M75: -2 | N75: 2 | O75: 0 | P75: 0 | Q75: 330983 | R75: 0 | S75: 2 | T75: 0 | U75: 0 | V75: 0 | W75: 0 | X75: 0 | Y75: 0 | Z75: 0 | AA75: 0 | AB75: 0 | AC75: 0 | AD75: 0 | AE75: 0 | AF75: 0 | AG75: 0 | AH75: 0 | AI75: 330983 | AJ75: 0 | AL75: 0 | AM75: 0 | AO75: 0 | AP75: 0 | AR75: 0 | AS75: 0 | AU75: 0 | AV75: 0 | AX75: 0 | AY75: 0 | BA75: 0 | BB75: 0 | BD75: 0 | BE75: 0
A76: 206 | B76: 94 | C76: 15 | D76: 000 | E76: 001 | F76: 000 | G76: 000-050 | H76: Intervenciones Realizadas Para La Atención De La Emergencia Provocada Por Los Efectos De La Época Lluviosa Y El Ciclón Tropical Julia | K76: Documento | L76: 0 | M76: -16 | N76: 16 | O76: 0 | P76: 0 | Q76: 3276221 | R76: 0 | S76: 16 | T76: 0 | U76: 0 | V76: 0 | W76: 0 | X76: 0 | Y76: 0 | Z76: 0 | AA76: 0 | AB76: 0 | AC76: 0 | AD76: 0 | AE76: 0 | AF76: 0 | AI76: 3276221 | AJ76: 0 | AK76: 0 | AL76: 0 | AM76: 0 | AO76: 0 | AP76: 0 | AR76: 0 | AS76: 0 | AU76: 0 | AV76: 0 | AX76: 0 | AY76: 0 | BA76: 0 | BB76: 0 | BD76: 0 | BE76: 0
A77: 206 | B77: 94 | C77: 15 | D77: 000 | E77: 001 | F77: 000 | I77: 000-050-0001 | J77: Intervenciones Realizadas Para La Atención De La Emergencia Provocada Por Los Efectos De La Época Lluviosa Y El Ciclón Tropical Julia | K77: Documento | L77: 0 | M77: -16 | N77: 16 | O77: 0 | P77: 0 | Q77: 3276221 | R77: 0 | S77: 16 | T77: 0 | U77: 0 | V77: 0 | W77: 0 | X77: 0 | Y77: 0 | Z77: 0 | AA77: 0 | AB77: 0 | AC77: 0 | AD77: 0 | AE77: 0 | AF77: 0 | AG77: 0 | AH77: 0 | AI77: 3276221 | AJ77: 0 | AL77: 0 | AM77: 0 | AO77: 0 | AP77: 0 | AR77: 0 | AS77: 0 | AU77: 0 | AV77: 0 | AX77: 0 | AY77: 0 | BA77: 0 | BB77: 0 | BD77: 0 | BE77: 0
A78: 206 | B78: 94 | C78: 16 | D78: 000 | E78: 001 | F78: 000 | G78: 000-053 | H78: Intervenciones Realizadas Para La Atención De Daños Y Efectos Causados Por El Alto Índice De Lluvias Y Saturación Actual De Los Suelos En El Territorio Nacional (Dg 2-2024) | K78: Documento | L78: 0 | M78: -35 | N78: 35 | O78: 35 | P78: 0 | Q78: 20000000 | R78: 1661525.82 | S78: 0 | T78: 0 | U78: 0 | V78: 0 | W78: 0 | X78: 0 | Y78: 0 | Z78: 0 | AA78: 0 | AB78: 0 | AC78: 0 | AD78: 0 | AE78: 35 | AF78: 0 | AG78: 0 | AH78: 0 | AI78: 0 | AJ78: 0 | AK78: 0 | AL78: 0 | AM78: 0 | AO78: 0 | AP78: 0 | AR78: 0 | AS78: 0 | AU78: 0 | AV78: 0 | AW78: 0 | AX78: 0 | AY78: 0 | AZ78: 0 | BA78: 20000000 | BB78: 0 | BC78: 0 | BD78: 0 | BE78: 1661525.82 | BF78: 0
A79: 206 | B79: 94 | C79: 16 | D79: 000 | E79: 001 | F79: 000 | I79: 000-053-0001 | J79: Intervenciones Realizadas Para La Atención De La Emergencia Provocada Por Los Efectos De La Época Lluviosa Y El Ciclón Tropical Julia | K79: Documento | L79: 0 | M79: -35 | N79: 35 | O79: 35 | P79: 0 | Q79: 20000000 | R79: 1661525.82 | S79: 0 | T79: 0 | U79: 0 | V79: 0 | W79: 0 | X79: 0 | Y79: 0 | Z79: 0 | AA79: 0 | AB79: 0 | AC79: 0 | AD79: 0 | AE79: 35 | AF79: 0 | AG79: 0 | AH79: 0 | AI79: 0 | AJ79: 0 | AL79: 0 | AM79: 0 | AO79: 0 | AP79: 0 | AR79: 0 | AS79: 0 | AU79: 0 | AV79: 0 | AX79: 0 | AY79: 0 | BA79: 20000000 | BB79: 0 | BD79: 0 | BE79: 1661525.82
A80: 207 | B80: 15 | C80: 00 | D80: 000 | E80: 001 | F80: 000 | G80: 000-019 | H80: Dirección Y Coordinación | K80: Evento | L80: 233 | M80: 110 | N80: 123 | O80: -20 | P80: 8687812 | Q80: 8455667 | R80: 4952650.34 | S80: 0 | T80: 75 | U80: 0 | V80: 1 | W80: 0 | X80: 5 | Y80: 0 | Z80: 0 | AA80: 0 | AB80: 9 | AC80: 0 | AD80: 0 | AE80: -110 | AF80: 0 | AH80: 0 | AI80: 0 | AJ80: 38837.05 | AK80: 450734.42 | AL80: 0 | AM80: 363531.05 | AN80: 408731.97 | AO80: -330173 | AP80: 168186.39 | AQ80: 410274.79 | AR80: 0 | AS80: 174037.67 | AT80: 490261 | AU80: 0 | AV80: 52886.39 | AW80: 445561 | AX80: 0 | AY80: 156734.5 | AZ80: 465294.34 | BA80: 98028 | BB80: 177556.45 | BC80: 497695.52 | BD80: 0 | BE80: 164516.8 | BF80: 487811
A81: 207 | B81: 15 | C81: 00 | D81: 000 | E81: 001 | F81: 000 | I81: 000-019-0001 | J81: Dirección Y Coordinación | K81: Evento | L81: 233 | M81: 110 | N81: 123 | O81: -20 | P81: 8687812 | Q81: 8455667 | R81: 4952650.34 | S81: 0 | T81: 75 | U81: 0 | V81: 1 | W81: 0 | X81: 5 | Y81: 0 | Z81: 0 | AA81: 0 | AB81: 9 | AC81: 0 | AD81: 0 | AE81: -110 | AF81: 0 | AG81: 0 | AH81: 0 | AI81: 0 | AJ81: 38837.05 | AK81: 450734.42 | AL81: 0 | AM81: 363531.05 | AN81: 408731.97 | AO81: -330173 | AP81: 168186.39 | AQ81: 410274.79 | AR81: 0 | AS81: 174037.67 | AT81: 490261 | AU81: 0 | AV81: 52886.39 | AW81: 445561 | AX81: 0 | AY81: 156734.5 | AZ81: 465294.34 | BA81: 98028 | BB81: 177556.45 | BC81: 497695.52 | BD81: 0 | BE81: 164516.8 | BF81: 487811
A82: 207 | B82: 15 | C82: 00 | D82: 000 | E82: 002 | F82: 000 | G82: 000-020 | H82: Personas Individuales Y Jurídicas Registradas En Radiodifusión Y Televisión | K82: Persona | L82: 997 | M82: 0 | N82: 997 | O82: 680 | P82: 2150172 | Q82: 2448381 | R82: 1561530.35 | S82: 0 | T82: 100 | U82: 0 | V82: 100 | W82: 0 | X82: 85 | Y82: 0 | Z82: 65 | AA82: 0 | AB82: 66 | AC82: 0 | AD82: 103 | AE82: 0 | AF82: 85 | AH82: 76 | AI82: 0 | AJ82: 11850 | AK82: 156796.89 | AL82: 0 | AM82: 0 | AN82: 179211.75 | AO82: 298209 | AP82: 9648 | AQ82: 170056.52 | AR82: 0 | AS82: 20156.57 | AT82: 169842.41 | AU82: 0 | AV82: 0 | AW82: 173478.22 | AX82: 0 | AY82: 627.5 | AZ82: 325358.58 | BA82: 0 | BB82: 4381.63 | BC82: 170025.76 | BD82: 0 | BE82: 0 | BF82: 170096.52
A83: 207 | B83: 15 | C83: 00 | D83: 000 | E83: 002 | F83: 000 | I83: 000-020-0003 | J83: Comerciales Registrados De Personas Jurídicas O Individuales | K83: Persona | L83: 790 | M83: 0 | N83: 790 | O83: 539 | P83: 2055172 | Q83: 2375381 | R83: 1514866.65 | S83: 0 | T83: 80 | U83: 0 | V83: 80 | W83: 0 | X83: 65 | Y83: 0 | Z83: 45 | AA83: 0 | AB83: 55 | AC83: 0 | AD83: 83 | AE83: 0 | AF83: 70 | AG83: 0 | AH83: 61 | AI83: 0 | AJ83: 0 | AK83: 156796.89 | AL83: 0 | AM83: 0 | AN83: 179211.75 | AO83: 320209 | AP83: 0 | AQ83: 170056.52 | AR83: 0 | AS83: 0 | AT83: 169842.41 | AU83: 0 | AV83: 0 | AW83: 173478.22 | AX83: 0 | AY83: 0 | AZ83: 325358.58 | BA83: 0 | BB83: 0 | BC83: 170025.76 | BD83: 0 | BE83: 0 | BF83: 170096.52
A84: 207 | B84: 15 | C84: 00 | D84: 000 | E84: 002 | F84: 000 | I84: 000-020-0004 | J84: Técnicos Con Registro En Radio Y/O Televisión | K84: Persona | L84: 3 | M84: 0 | N84: 3 | O84: 1 | P84: 45000 | Q84: 33000 | R84: 22648 | S84: 0 | T84: 0 | U84: 0 | V84: 0 | W84: 0 | X84: 0 | Y84: 0 | Z84: 0 | AA84: 0 | AB84: 1 | AC84: 0 | AD84: 0 | AE84: 0 | AF84: 0 | AG84: 0 | AH84: 0 | AI84: 0 | AJ84: 11850 | AL84: 0 | AM84: 0 | AO84: -12000 | AP84: 8148 | AR84: 0 | AS84: 0 | AU84: 0 | AV84: 0 | AX84: 0 | AY84: 0 | BA84: 0 | BB84: 2650 | BD84: 0 | BE84: 0
A85: 207 | B85: 15 | C85: 00 | D85: 000 | E85: 002 | F85: 000 | I85: 000-020-0005 | J85: Locutores Registrados En Radio Y/O Televisión | K85: Persona | L85: 204 | M85: 0 | N85: 204 | O85: 140 | P85: 50000 | Q85: 40000 | R85: 24015.7 | S85: 0 | T85: 20 | U85: 0 | V85: 20 | W85: 0 | X85: 20 | Y85: 0 | Z85: 20 | AA85: 0 | AB85: 10 | AC85: 0 | AD85: 20 | AE85: 0 | AF85: 15 | AG85: 0 | AH85: 15 | AI85: 0 | AJ85: 0 | AL85: 0 | AM85: 0 | AO85: -10000 | AP85: 1500 | AR85: 0 | AS85: 20156.57 | AU85: 0 | AV85: 0 | AX85: 0 | AY85: 627.5 | BA85: 0 | BB85: 1731.63 | BD85: 0 | BE85: 0
A86: 207 | B86: 15 | C86: 00 | D86: 000 | E86: 003 | F86: 000 | G86: 000-021 | H86: Servicios De Radiodifusión | K86: Evento | L86: 54998 | M86: 0 | N86: 54998 | O86: 37153 | P86: 4708006 | Q86: 4641942 | R86: 2723697.5 | S86: 0 | T86: 4611 | U86: 0 | V86: 4626 | W86: 0 | X86: 4638 | Y86: 0 | Z86: 4638 | AA86: 0 | AB86: 4653 | AC86: 0 | AD86: 4668 | AE86: 0 | AF86: 4663 | AH86: 4656 | AI86: 0 | AJ86: 50127.98 | AK86: 196389.29 | AL86: 0 | AM86: 96551.94 | AN86: 196513.51 | AO86: 31964 | AP86: 44070.15 | AQ86: 182299.24 | AR86: 0 | AS86: 299757.54 | AT86: 186306.82 | AU86: 0 | AV86: 21606.54 | AW86: 185057.72 | AX86: 0 | AY86: 289140.56 | AZ86: 297506.21 | BA86: -98028 | BB86: 210050.95 | BC86: 230126.84 | BD86: 0 | BE86: 61902.61 | BF86: 176289.6
A87: 207 | B87: 15 | C87: 00 | D87: 000 | E87: 003 | F87: 000 | I87: 000-021-0001 | J87: Programas Radiales A Control Remoto Difundidos | K87: Evento | L87: 2818 | M87: 0 | N87: 2818 | O87: 1870 | P87: 129476 | Q87: 113476 | R87: 50979.48 | S87: 0 | T87: 235 | U87: 0 | V87: 225 | W87: 0 | X87: 235 | Y87: 0 | Z87: 235 | AA87: 0 | AB87: 235 | AC87: 0 | AD87: 235 | AE87: 0 | AF87: 235 | AG87: 0 | AH87: 235 | AI87: 0 | AJ87: 3432.47 | AL87: 0 | AM87: 0 | AO87: -16000 | AP87: 0 | AR87: 0 | AS87: 31547.69 | AU87: 0 | AV87: 7466.32 | AX87: 0 | AY87: 808 | BA87: 0 | BB87: 7725 | BD87: 0 | BE87: 0
A88: 207 | B88: 15 | C88: 00 | D88: 000 | E88: 003 | F88: 000 | I88: 000-021-0002 | J88: Programas Radiales Difundidos | K88: Evento | L88: 11880 | M88: 0 | N88: 11880 | O88: 7883 | P88: 1386359 | Q88: 1306359 | R88: 986181.53 | S88: 0 | T88: 951 | U88: 0 | V88: 976 | W88: 0 | X88: 978 | Y88: 0 | Z88: 978 | AA88: 0 | AB88: 993 | AC88: 0 | AD88: 1008 | AE88: 0 | AF88: 1003 | AG88: 0 | AH88: 996 | AI88: 0 | AJ88: 46695.51 | AK88: 196389.29 | AL88: 0 | AM88: 47723.44 | AO88: -80000 | AP88: 30065.15 | AR88: 0 | AS88: 252967.69 | AU88: 0 | AV88: 4134.86 | AX88: 0 | AY88: 188496.53 | BA88: 0 | BB88: 172801.95 | BD88: 0 | BE88: 46907.11
A89: 207 | B89: 15 | C89: 00 | D89: 000 | E89: 003 | F89: 000 | I89: 000-021-0003 | J89: Spot Gubernamentales Otorgados A Entidades Públicas | K89: Evento | L89: 40300 | M89: 0 | N89: 40300 | O89: 27400 | P89: 3192171 | Q89: 3222107 | R89: 1686536.49 | S89: 0 | T89: 3425 | U89: 0 | V89: 3425 | W89: 0 | X89: 3425 | Y89: 0 | Z89: 3425 | AA89: 0 | AB89: 3425 | AC89: 0 | AD89: 3425 | AE89: 0 | AF89: 3425 | AG89: 0 | AH89: 3425 | AI89: 0 | AJ89: 0 | AL89: 0 | AM89: 48828.5 | AN89: 196513.51 | AO89: 127964 | AP89: 14005 | AQ89: 182299.24 | AR89: 0 | AS89: 15242.16 | AT89: 186306.82 | AU89: 0 | AV89: 10005.36 | AW89: 185057.72 | AX89: 0 | AY89: 99836.03 | AZ89: 297506.21 | BA89: -98028 | BB89: 29524 | BC89: 230126.84 | BD89: 0 | BE89: 14995.5 | BF89: 176289.6
A90: 208 | B90: 21 | C90: 00 | D90: 000 | E90: 001 | F90: 000 | G90: 000-024 | H90: Dirección Y Coordinación | K90: Evento | L90: 218 | M90: 0 | N90: 218 | O90: 54 | P90: 8433472 | Q90: 8466934 | R90: 3220892.17 | S90: 0 | T90: 45 | U90: 0 | V90: 2 | W90: 0 | X90: 1 | Y90: 0 | Z90: 2 | AA90: 0 | AB90: 0 | AC90: 0 | AD90: 1 | AE90: 0 | AF90: 3 | AI90: 0 | AJ90: 27974.27 | AK90: 413760.79 | AL90: 0 | AM90: 16236.5 | AN90: 403776.07 | AO90: 0 | AP90: 72572 | AQ90: 323386.45 | AR90: 0 | AS90: 33079.54 | AT90: 345689.52 | AU90: 33462 | AV90: 118825.59 | AW90: 274925 | AX90: 0 | AY90: 210444.71 | AZ90: 225038.45 | BA90: 0 | BB90: 164881.18 | BC90: 194896.93 | BD90: 0 | BE90: 108524.14 | BF90: =+BF91 -> 286881.03
A91: 208 | B91: 21 | C91: 00 | D91: 000 | E91: 001 | F91: 000 | I91: 000-024-0001 | J91: Dirección Y Coordinación | K91: Evento | L91: 218 | M91: 0 | N91: 218 | O91: 54 | P91: 8433472 | Q91: 8466934 | R91: 3220892.17 | S91: 0 | T91: 45 | U91: 0 | V91: 2 | W91: 0 | X91: 1 | Y91: 0 | Z91: 2 | AA91: 0 | AB91: 0 | AC91: 0 | AD91: 1 | AE91: 0 | AF91: 3 | AG91: 0 | AH91: 0 | AI91: 0 | AJ91: 27974.27 | AK91: 413760.79 | AL91: 0 | AM91: 16236.5 | AN91: 403776.07 | AO91: 0 | AP91: 72572 | AQ91: 323386.45 | AR91: 0 | AS91: 33079.54 | AT91: 345689.52 | AU91: 33462 | AV91: 118825.59 | AW91: 274925 | AX91: 0 | AY91: 210444.71 | AZ91: 225038.45 | BA91: 0 | BB91: 164881.18 | BC91: 194896.93 | BD91: 0 | BE91: 108524.14 | BF91: 286881.03
A92: 208 | B92: 21 | C92: 00 | D92: 000 | E92: 002 | F92: 000 | G92: 000-025 | H92: Empresas De Cable Con Registro Y Supervisión | K92: Entidad | L92: 2958 | M92: 0 | N92: 2958 | O92: 1080 | P92: 1851395 | Q92: 1817933 | R92: 280413.76 | S92: 0 | T92: 162 | U92: 0 | V92: 289 | W92: 0 | X92: 232 | Y92: 0 | Z92: 298 | AA92: 0 | AB92: 0 | AC92: 0 | AD92: 99 | AE92: 0 | AF92: 0 | AI92: 0 | AJ92: 3112.5 | AK92: 0 | AL92: 0 | AM92: 80110.5 | AN92: 0 | AO92: 0 | AP92: 70234 | AQ92: 0 | AR92: 0 | AS92: 93905 | AT92: 0 | AU92: -33462 | AV92: 1250.26 | AX92: 0 | AY92: 3905 | BA92: 0 | BB92: 18701 | BD92: 0 | BE92: 9195.5
A93: 208 | B93: 21 | C93: 00 | D93: 000 | E93: 002 | F93: 000 | I93: 000-025-0001 | J93: Empresas De Cable Con Visitas De Supervisión | K93: Entidad | L93: 2814 | M93: 0 | N93: 2814 | O93: 1034 | P93: 808467 | Q93: 775005 | R93: 280413.76 | S93: 0 | T93: 155 | U93: 0 | V93: 276 | W93: 0 | X93: 221 | Y93: 0 | Z93: 286 | AA93: 0 | AB93: 0 | AC93: 0 | AD93: 96 | AE93: 0 | AF93: 0 | AG93: 0 | AH93: 0 | AI93: 0 | AJ93: 3112.5 | AL93: 0 | AM93: 80110.5 | AO93: 0 | AP93: 70234 | AR93: 0 | AS93: 93905 | AU93: -33462 | AV93: 1250.26 | AX93: 0 | AY93: 3905 | BA93: 0 | BB93: 18701 | BD93: 0 | BE93: 9195.5
A94: 208 | B94: 21 | C94: 00 | D94: 000 | E94: 002 | F94: 000 | I94: 000-025-0002 | J94: Empresas De Cable Nuevas Con Registro | K94: Entidad | L94: 26 | M94: 0 | N94: 26 | O94: 8 | P94: 568018 | Q94: 568018 | R94: 0 | S94: 0 | T94: 1 | U94: 0 | V94: 3 | W94: 0 | X94: 1 | Y94: 0 | Z94: 2 | AA94: 0 | AB94: 0 | AC94: 0 | AD94: 1 | AE94: 0 | AF94: 0 | AG94: 0 | AH94: 0 | AI94: 0 | AJ94: 0 | AL94: 0 | AM94: 0 | AO94: 0 | AP94: 0 | AR94: 0 | AS94: 0 | AU94: 0 | AV94: 0 | AX94: 0 | AY94: 0 | BA94: 0 | BB94: 0 | BD94: 0 | BE94: 0
A95: 208 | B95: 21 | C95: 00 | D95: 000 | E95: 002 | F95: 000 | I95: 000-025-0005 | J95: Empresas Sancionadas Por Incumplimiento A La Ley Del Cable | K95: Entidad | L95: 118 | M95: 0 | N95: 118 | O95: 38 | P95: 474910 | Q95: 474910 | R95: 0 | S95: 0 | T95: 6 | U95: 0 | V95: 10 | W95: 0 | X95: 10 | Y95: 0 | Z95: 10 | AA95: 0 | AB95: 0 | AC95: 0 | AD95: 2 | AE95: 0 | AF95: 0 | AG95: 0 | AH95: 0 | AI95: 0 | AJ95: 0 | AL95: 0 | AM95: 0 | AO95: 0 | AP95: 0 | AR95: 0 | AS95: 0 | AU95: 0 | AV95: 0 | AX95: 0 | AY95: 0 | BA95: 0 | BB95: 0 | BD95: 0 | BE95: 0
A96: 209 | B96: 99 | C96: 00 | D96: 000 | E96: 002 | F96: 000 | G96: 000-005 | H96: Personas Jurídicas Beneficiadas Con Aportes Y/O Cuotas Para Comunicaciones | K96: Aporte | L96: 2 | M96: 2 | N96: 0 | O96: 0 | P96: 168000 | Q96: 483954 | R96: 0 | S96: -2 | T96: 0 | U96: 0 | V96: 0 | W96: 0 | X96: 0 | Y96: 0 | Z96: 0 | AA96: 0 | AB96: 0 | AC96: 0 | AD96: 0 | AE96: 0 | AF96: 0 | AI96: 0 | AJ96: 0 | AK96: 0 | AL96: 0 | AM96: 0 | AO96: 0 | AP96: 0 | AR96: 0 | AS96: 0 | AU96: 315954 | AV96: 0 | AX96: 0 | AY96: 0 | BA96: 0 | BB96: 0 | BD96: 0 | BE96: 0
A97: 209 | B97: 99 | C97: 00 | D97: 000 | E97: 002 | F97: 000 | I97: 000-005-0001 | J97: Personas Jurídicas Beneficiadas Con Aportes Y/O Cuotas Para Comunicaciones | K97: Aporte | L97: 2 | M97: 2 | N97: 0 | O97: 0 | P97: 168000 | Q97: 483954 | R97: 0 | S97: -2 | T97: 0 | U97: 0 | V97: 0 | W97: 0 | X97: 0 | Y97: 0 | Z97: 0 | AA97: 0 | AB97: 0 | AC97: 0 | AD97: 0 | AE97: 0 | AF97: 0 | AG97: 0 | AH97: 0 | AI97: 0 | AJ97: 0 | AL97: 0 | AM97: 0 | AO97: 0 | AP97: 0 | AR97: 0 | AS97: 0 | AU97: 315954 | AV97: 0 | AX97: 0 | AY97: 0 | BA97: 0 | BB97: 0 | BD97: 0 | BE97: 0
A98: 209 | B98: 99 | C98: 00 | D98: 000 | E98: 003 | F98: 000 | G98: 000-006 | H98: Personas Jurídicas Beneficiadas Con Aportes Y/O Cuotas Para Control Del Medio Ambiente | K98: Aporte | L98: 2 | M98: 2 | N98: 0 | O98: 0 | P98: 208000 | Q98: 248000 | R98: =+AJ98+AK98+AM98+AN98+AP98+AQ98+AS98+AT98+AV98+AW98+AY98+AZ98+BB98+BC98+BE98+BF98 -> 116245.95 | S98: -2 | T98: 0 | U98: 0 | V98: 0 | W98: 0 | X98: 0 | Y98: 0 | Z98: 0 | AA98: 0 | AB98: 0 | AC98: 0 | AD98: 0 | AE98: 0 | AF98: 0 | AI98: 0 | AJ98: 0 | AK98: 0 | AL98: 0 | AM98: 0 | AO98: 0 | AP98: 0 | AR98: 0 | AS98: 0 | AU98: 40000 | AV98: 0 | AX98: 0 | AY98: 0 | BA98: 0 | BB98: 116245.95 | BD98: 0 | BE98: 0
A99: 209 | B99: 99 | C99: 00 | D99: 000 | E99: 003 | F99: 000 | I99: 000-006-0001 | J99: Personas Jurídicas Beneficiadas Con Aportes Y/O Cuotas Para Control Del Medio Ambiente | K99: Aporte | L99: 2 | M99: 2 | N99: 0 | O99: 0 | P99: 208000 | Q99: 248000 | R99: 116245.95 | S99: -2 | T99: 0 | U99: 0 | V99: 0 | W99: 0 | X99: 0 | Y99: 0 | Z99: 0 | AA99: 0 | AB99: 0 | AC99: 0 | AD99: 0 | AE99: 0 | AF99: 0 | AG99: 0 | AH99: 0 | AI99: 0 | AJ99: 0 | AL99: 0 | AM99: 0 | AO99: 0 | AP99: 0 | AR99: 0 | AS99: 0 | AU99: 40000 | AV99: 0 | AX99: 0 | AY99: 0 | BA99: 0 | BB99: 116245.95 | BD99: 0 | BE99: 0
A100: 209 | B100: 16 | C100: 00 | D100: 000 | E100: 001 | F100: 000 | G100: 020-006 | H100: Dirección Y Coordinación | K100: Evento | L100: 850 | M100: 66 | N100: 784 | O100: 472 | P100: 15193176 | Q100: 16359975 | R100: 7295661.47 | S100: -63 | T100: 0 | U100: 0 | V100: 79 | W100: 0 | X100: 66 | Y100: 0 | Z100: 66 | AA100: 0 | AB100: 66 | AC100: -3 | AD100: 66 | AE100: 0 | AF100: 66 | AH100: 66 | AI100: 0 | AJ100: 82637.35 | AK100: 666022.66 | AL100: 0 | AM100: 161436.48 | AN100: 612926 | AO100: 0 | AP100: 171888.41 | AQ100: 589746.93 | AR100: 0 | AS100: 295807.86 | AT100: 597243.5 | AU100: 0 | AV100: 224795.08 | AW100: 607261.18 | AX100: 0 | AY100: 590940.76 | AZ100: 741098.16 | BA100: 1166799 | BB100: 276454 | BC100: 651473.8 | BD100: 0 | BE100: 259192.08 | BF100: 766737.22
A101: 209 | B101: 16 | C101: 00 | D101: 000 | E101: 001 | F101: 000 | I101: 020-006-0001 | J101: Dirección Y Coordinación | K101: Evento | L101: 850 | M101: 66 | N101: 784 | O101: 472 | P101: 15193176 | Q101: 16359975 | R101: 7295661.47 | S101: -63 | T101: 0 | U101: 0 | V101: 79 | W101: 0 | X101: 66 | Y101: 0 | Z101: 66 | AA101: 0 | AB101: 66 | AC101: -3 | AD101: 66 | AE101: 0 | AF101: 66 | AG101: 0 | AH101: 66 | AI101: 0 | AJ101: 82637.35 | AK101: 666022.66 | AL101: 0 | AM101: 161436.48 | AN101: 612926 | AO101: 0 | AP101: 171888.41 | AQ101: 589746.93 | AR101: 0 | AS101: 295807.86 | AT101: 597243.5 | AU101: 0 | AV101: 224795.08 | AW101: 607261.18 | AX101: 0 | AY101: 590940.76 | AZ101: 741098.16 | BA101: 1166799 | BB101: 276454 | BC101: 651473.8 | BD101: 0 | BE101: 259192.08 | BF101: 766737.22
A102: 209 | B102: 16 | C102: 00 | D102: 000 | E102: 002 | F102: 000 | G102: 020-007 | H102: Boletines Con Información Climática | K102: Documento | L102: 16107 | M102: 2308 | N102: 13799 | O102: 8970 | P102: 14901860 | Q102: 13103413 | R102: 6688108.31 | S102: -2294 | T102: 0 | U102: 0 | V102: 2126 | W102: 0 | X102: 1143 | Y102: 0 | Z102: 1143 | AA102: 0 | AB102: 1143 | AC102: -14 | AD102: 1145 | AE102: 0 | AF102: 1145 | AH102: 1139 | AI102: 0 | AJ102: 7044.42 | AK102: 761111.55 | AL102: 0 | AM102: 45208.71 | AN102: 775385.03 | AO102: 0 | AP102: 28706.97 | AQ102: 781642.43 | AR102: 0 | AS102: 27674.46 | AT102: 777046.15 | AU102: -355954 | AV102: 59779.77 | AW102: 775659.66 | AX102: 0 | AY102: 42486.78 | AZ102: 961272.63 | BA102: -1442493 | BB102: 73723.65 | BC102: 768063.2 | BD102: 0 | BE102: 36868.72 | BF102: 766434.18
A103: 209 | B103: 16 | C103: 00 | D103: 000 | E103: 002 | F103: 000 | I103: 020-007-0001 | J103: Usuarios Atendidos Con Información Climática | K103: Documento | L103: 12763 | M103: 1222 | N103: 11541 | O103: 7534 | P103: 14190894 | Q103: 12495300 | R103: 6515117.04 | S103: -1208 | T103: 0 | U103: 0 | V103: 1800 | W103: 0 | X103: 959 | Y103: 0 | Z103: 959 | AA103: 0 | AB103: 959 | AC103: -14 | AD103: 959 | AE103: 0 | AF103: 959 | AG103: 0 | AH103: 953 | AI103: 0 | AJ103: 6643.34 | AK103: 761111.55 | AL103: 0 | AM103: 1273.71 | AN103: 775385.03 | AO103: 0 | AP103: 20418.95 | AQ103: 781642.43 | AR103: 0 | AS103: 28736.79 | AT103: 777046.15 | AU103: -305954 | AV103: 8302.51 | AW103: 775659.66 | AX103: 0 | AY103: 6791.78 | AZ103: 961272.63 | BA103: -1389640 | BB103: 62079.92 | BC103: 768063.2 | BD103: 0 | BE103: 14255.21 | BF103: 766434.18
A104: 209 | B104: 16 | C104: 00 | D104: 000 | E104: 002 | F104: 000 | I104: 020-007-0002 | J104: Boletines Emitidos Con Información Meteorológica | K104: Documento | L104: 3344 | M104: 1086 | N104: 2258 | O104: 1436 | P104: 710966 | Q104: 608113 | R104: 172991.27 | S104: -1086 | T104: 0 | U104: 0 | V104: 326 | W104: 0 | X104: 184 | Y104: 0 | Z104: 184 | AA104: 0 | AB104: 184 | AC104: 0 | AD104: 186 | AE104: 0 | AF104: 186 | AG104: 0 | AH104: 186 | AI104: 0 | AJ104: 401.08 | AL104: 0 | AM104: 43935 | AO104: 0 | AP104: 8288.02 | AR104: 0 | AS104: -1062.33 | AU104: -50000 | AV104: 51477.26 | AX104: 0 | AY104: 35695 | BA104: -52853 | BB104: 11643.73 | BD104: 0 | BE104: 22613.51
A105: 209 | B105: 16 | C105: 00 | D105: 000 | E105: 003 | F105: 000 | G105: 020-008 | H105: Información De Amenaza Sísmica Y Volcánica Registrada | K105: Documento | L105: 8100 | M105: -3880 | N105: 11980 | O105: 6733 | P105: 4918597 | Q105: 4778947 | R105: 2682744.37 | S105: 3880 | T105: 0 | U105: 0 | V105: 1403 | W105: 0 | X105: 335 | Y105: 0 | Z105: 999 | AA105: 0 | AB105: 999 | AC105: 0 | AD105: 999 | AE105: 0 | AF105: 999 | AH105: 999 | AI105: 0 | AJ105: 0 | AK105: 275098.9 | AL105: 0 | AM105: 18195 | AN105: 283793.48 | AO105: 0 | AP105: 16442.25 | AQ105: 285978.72 | AR105: 0 | AS105: 41784.35 | AT105: 276898.6 | AU105: 0 | AV105: 48980 | AW105: 341439.12 | AX105: 0 | AY105: 42109.95 | AZ105: 333505.27 | BA105: -139650 | BB105: 68811.75 | BC105: 281233.7 | BD105: 0 | BE105: 94061.7 | BF105: 274411.58
A106: 209 | B106: 16 | C106: 00 | D106: 000 | E106: 003 | F106: 000 | I106: 020-008-0001 | J106: Boletines Emitidos Con Información Geológica | K106: Documento | L106: 3872 | M106: -2072 | N106: 5944 | O106: 3614 | P106: 3746500 | Q106: 3618000 | R106: 2017871.51 | S106: 2072 | T106: 0 | U106: 0 | V106: 825 | W106: 0 | X106: 309 | Y106: 0 | Z106: 496 | AA106: 0 | AB106: 496 | AC106: 0 | AD106: 496 | AE106: 0 | AF106: 496 | AG106: 0 | AH106: 496 | AI106: 0 | AJ106: 0 | AK106: 223706.85 | AL106: 0 | AM106: 0 | AN106: 230777.17 | AO106: 0 | AP106: 11218.25 | AQ106: 232554.18 | AR106: 0 | AS106: 16082.85 | AT106: 225170.34 | AU106: 0 | AV106: 22855 | AW106: 277653.85 | AX106: 0 | AY106: 6633 | AZ106: 271202.15 | BA106: -128500 | BB106: 35145.75 | BC106: 228695.59 | BD106: 0 | BE106: 13028.6 | BF106: 223147.93
A107: 209 | B107: 16 | C107: 00 | D107: 000 | E107: 003 | F107: 000 | I107: 020-008-0002 | J107: Informes Emitidos Sobre Deslizamiento De Tierra | K107: Documento | L107: 4228 | M107: -1808 | N107: 6036 | O107: 3119 | P107: 1172097 | Q107: 1160947 | R107: 664872.86 | S107: 1808 | T107: 0 | U107: 0 | V107: 578 | W107: 0 | X107: 26 | Y107: 0 | Z107: 503 | AA107: 0 | AB107: 503 | AC107: 0 | AD107: 503 | AE107: 0 | AF107: 503 | AG107: 0 | AH107: 503 | AI107: 0 | AJ107: 0 | AK107: 51392.05 | AL107: 0 | AM107: 18195 | AN107: 53016.31 | AO107: 0 | AP107: 5224 | AQ107: 53424.54 | AR107: 0 | AS107: 25701.5 | AT107: 51728.26 | AU107: 0 | AV107: 26125 | AW107: 63785.27 | AX107: 0 | AY107: 35476.95 | AZ107: 62303.12 | BA107: -11150 | BB107: 33666 | BC107: 52538.11 | BD107: 0 | BE107: 81033.1 | BF107: 51263.65
A108: 209 | B108: 16 | C108: 00 | D108: 000 | E108: 004 | F108: 000 | G108: 020-009 | H108: Información De Actividad Hidrológica Registrada | K108: Documento | L108: 9508 | M108: -61 | N108: 9569 | O108: 6362 | P108: 14693204 | Q108: 13697505 | R108: 4357682.64 | S108: 74 | T108: 0 | U108: 0 | V108: 1595 | W108: 0 | X108: 797 | Y108: 0 | Z108: 800 | AA108: 0 | AB108: 796 | AC108: -13 | AD108: 796 | AE108: 0 | AF108: 796 | AH108: 795 | AI108: 0 | AJ108: 48710.64 | AK108: 446732.09 | AL108: 0 | AM108: 16956.89 | AN108: 439289.17 | AO108: 0 | AP108: 119587.47 | AQ108: 436877.25 | AR108: 0 | AS108: 71273.39 | AT108: 418269.5 | AU108: 0 | AV108: 35539.01 | AW108: 467338.26 | AX108: 0 | AY108: 127683.5 | AZ108: 656921.39 | BA108: -995699 | BB108: 84423.52 | BC108: 443747.01 | BD108: 0 | BE108: 90823.2 | BF108: 453510.35
A109: 209 | B109: 16 | C109: 00 | D109: 000 | E109: 004 | F109: 000 | I109: 020-009-0001 | J109: Boletines Con Información Hidrológica | K109: Documento | L109: 3265 | M109: -1107 | N109: 4372 | O109: 2886 | P109: 5748425 | Q109: 4828382 | R109: 1802825.95 | S109: 1120 | T109: 0 | U109: 0 | V109: 727 | W109: 0 | X109: 363 | Y109: 0 | Z109: 366 | AA109: 0 | AB109: 362 | AC109: -13 | AD109: 362 | AE109: 0 | AF109: 362 | AG109: 0 | AH109: 357 | AI109: 0 | AJ109: 2204.63 | AK109: 232224.29 | AL109: 0 | AM109: 764.08 | AN109: 194043.69 | AO109: 0 | AP109: 20866.43 | AQ109: 192978.29 | AR109: 0 | AS109: 17472 | AT109: 184758.84 | AU109: 0 | AV109: 15619.41 | AW109: 206433.59 | AX109: 0 | AY109: 1857 | AZ109: 290176.63 | BA109: -920043 | BB109: 25771.03 | BC109: 196012.82 | BD109: 0 | BE109: 21317.72 | BF109: 200325.5
A110: 209 | B110: 16 | C110: 00 | D110: 000 | E110: 004 | F110: 000 | I110: 020-009-0002 | J110: Publicaciones Anuales Con Información Consolidada De Efemérides Solar, Pronóstico De Mareas, Estudios De Calidad De Agua Y De Cuencas | K110: Documento | L110: 2985 | M110: 45 | N110: 2940 | O110: 1972 | P110: 8542513 | Q110: 8504441 | R110: 2502384.85 | S110: -45 | T110: 0 | U110: 0 | V110: 492 | W110: 0 | X110: 246 | Y110: 0 | Z110: 246 | AA110: 0 | AB110: 246 | AC110: 0 | AD110: 246 | AE110: 0 | AF110: 246 | AG110: 0 | AH110: 250 | AI110: 0 | AJ110: 40230.15 | AK110: 214507.8 | AL110: 0 | AM110: 14482.35 | AN110: 245245.48 | AO110: 0 | AP110: 82638.05 | AQ110: 243898.96 | AR110: 0 | AS110: 47579.39 | AT110: 233510.66 | AU110: 0 | AV110: 13315.56 | AW110: 260904.67 | AX110: 0 | AY110: 122046.5 | AZ110: 366744.76 | BA110: -38072 | BB110: 58577.49 | BC110: 247734.19 | BD110: 0 | BE110: 57783.99 | BF110: 253184.85
A111: 209 | B111: 16 | C111: 00 | D111: 000 | E111: 004 | F111: 000 | I111: 020-009-0003 | J111: Boletines Emitidos Con Información Del Índice De Calidad Del Aire | K111: Documento | L111: 3258 | M111: 1001 | N111: 2257 | O111: 1504 | P111: 402266 | Q111: 364682 | R111: 52471.84 | S111: -1001 | T111: 0 | U111: 0 | V111: 376 | W111: 0 | X111: 188 | Y111: 0 | Z111: 188 | AA111: 0 | AB111: 188 | AC111: 0 | AD111: 188 | AE111: 0 | AF111: 188 | AG111: 0 | AH111: 188 | AI111: 0 | AJ111: 6275.86 | AL111: 0 | AM111: 1710.46 | AO111: 0 | AP111: 16082.99 | AR111: 0 | AS111: 6222 | AU111: 0 | AV111: 6604.04 | AX111: 0 | AY111: 3780 | BA111: -37584 | BB111: 75 | BD111: 0 | BE111: 11721.49
A112: 210 | B112: 99 | C112: 00 | D112: 000 | E112: 002 | F112: 000 | G112: 000-005 | H112: Personas Jurídicas Beneficiadas Con Aportes Y/O Cuotas Para Comunicaciones | K112: Aporte | L112: 3 | M112: 1 | N112: 2 | O112: 2 | P112: 615180 | Q112: 659642 | R112: 245041.65 | S112: -1 | T112: 0 | U112: 0 | V112: 0 | W112: 0 | X112: 0 | Y112: 0 | Z112: 0 | AA112: 0 | AB112: 1 | AC112: 0 | AD112: 1 | AE112: 0 | AF112: 0 | AI112: 0 | AJ112: 0 | AK112: 0 | AL112: 0 | AM112: 0 | AO112: 0 | AP112: 0 | AR112: 0 | AS112: 0 | AU112: 0 | AV112: 245041.65 | AX112: 44462 | AY112: 0 | BA112: 0 | BB112: 0 | BD112: 0 | BE112: 0
A113: 210 | B113: 99 | C113: 00 | D113: 000 | E113: 002 | F113: 000 | I113: 000-005-0001 | J113: Personas Jurídicas Beneficiadas Con Aportes Y/O Cuotas Para Comunicaciones | K113: Aporte | L113: 3 | M113: 1 | N113: 2 | O113: 2 | P113: 615180 | Q113: 659642 | R113: 245041.65 | S113: -1 | T113: 0 | U113: 0 | V113: 0 | W113: 0 | X113: 0 | Y113: 0 | Z113: 0 | AA113: 0 | AB113: 1 | AC113: 0 | AD113: 1 | AE113: 0 | AF113: 0 | AG113: 0 | AH113: 0 | AI113: 0 | AJ113: 0 | AL113: 0 | AM113: 0 | AO113: 0 | AP113: 0 | AR113: 0 | AS113: 0 | AU113: 0 | AV113: 245041.65 | AX113: 44462 | AY113: 0 | BA113: 0 | BB113: 0 | BD113: 0 | BE113: 0
A114: 210 | B114: 17 | C114: 00 | D114: 000 | E114: 001 | F114: 000 | G114: 000-029 | H114: Dirección Y Coordinación | K114: Evento | L114: 608 | M114: -41 | N114: 649 | O114: 313 | P114: 16300622 | Q114: 15949326 | R114: 8031781.6 | S114: -8 | T114: 39 | U114: -1 | V114: 2 | W114: 50 | X114: 3 | Y114: 0 | Z114: 115 | AA114: 0 | AB114: 2 | AC114: 0 | AD114: 46 | AE114: 0 | AF114: 17 | AH114: 40 | AI114: 0 | AJ114: 19252.25 | AK114: 690711.08 | AL114: -485300 | AM114: 105945.65 | AN114: 647755.22 | AO114: 0 | AP114: 61920 | AQ114: 539339.78 | AR114: -13996 | AS114: 750070.42 | AT114: 752194.38 | AU114: 148000 | AV114: 683329.93 | AW114: 809013.24 | AX114: 0 | AY114: 521475.5 | AZ114: 682598 | BA114: 0 | BB114: 116374.99 | BC114: 656062.79 | BD114: 0 | BE114: 349441.73 | BF114: 646296.64
A115: 210 | B115: 17 | C115: 00 | D115: 000 | E115: 001 | F115: 000 | I115: 000-029-0001 | J115: Dirección Y Coordinación | K115: Evento | L115: 608 | M115: -41 | N115: 649 | O115: 313 | P115: 16300622 | Q115: 15949326 | R115: 8031781.6 | S115: -8 | T115: 39 | U115: -1 | V115: 2 | W115: 50 | X115: 3 | Y115: 0 | Z115: 115 | AA115: 0 | AB115: 2 | AC115: 0 | AD115: 46 | AE115: 0 | AF115: 17 | AG115: 0 | AH115: 40 | AI115: 0 | AJ115: 19252.25 | AK115: 690711.08 | AL115: -485300 | AM115: 105945.65 | AN115: 647755.22 | AO115: 0 | AP115: 61920 | AQ115: 539339.78 | AR115: -13996 | AS115: 750070.42 | AT115: 752194.38 | AU115: 148000 | AV115: 683329.93 | AW115: 809013.24 | AX115: 0 | AY115: 521475.5 | AZ115: 682598 | BA115: 0 | BB115: 116374.99 | BC115: 656062.79 | BD115: 0 | BE115: 349441.73 | BF115: 646296.64
A116: 210 | B116: 17 | C116: 00 | D116: 000 | E116: 002 | F116: 000 | G116: 000-030 | H116: Personas Individuales Y/O Jurídicas Con Servicios Postales Otorgados | K116: Persona | L116: 476400 | M116: -65799 | N116: 542199 | O116: 343286 | P116: 12442858 | Q116: 12749692 | R116: 6766483.92 | S116: 71142 | T116: 27430 | U116: 106 | V116: 31560 | W116: -5449 | X116: 28822 | Y116: 0 | Z116: 22678 | AA116: 0 | AB116: 119490 | AC116: 0 | AD116: 38953 | AE116: 0 | AF116: 40505 | AH116: 39191 | AI116: 0 | AJ116: 12836.1 | AK116: 782532.27 | AL116: 485300 | AM116: 104447.24 | AN116: 828913.79 | AO116: 0 | AP116: 50170.39 | AQ116: 781693.56 | AR116: 13996 | AS116: 49710.83 | AT116: 633551.72 | AU116: -148000 | AV116: 71288.9 | AW116: 948000 | AX116: -44462 | AY116: 63927.21 | AZ116: 783500 | BA116: 0 | BB116: 73959.17 | BC116: 709225.69 | BD116: 0 | BE116: 114952.86 | BF116: 757774.19
A117: 210 | B117: 17 | C117: 00 | D117: 000 | E117: 002 | F117: 000 | I117: 000-030-0001 | J117: Personas Individuales Y/O Jurídicas Con Servicios Postales Otorgados | K117: Persona | L117: 476400 | M117: -65799 | N117: 542199 | O117: 343286 | P117: 12442858 | Q117: 12749692 | R117: 6766483.92 | S117: 71142 | T117: 27430 | U117: 106 | V117: 31560 | W117: -5449 | X117: 28822 | Y117: 0 | Z117: 22678 | AA117: 0 | AB117: 119490 | AC117: 0 | AD117: 38953 | AE117: 0 | AF117: 40505 | AG117: 0 | AH117: 39191 | AI117: 0 | AJ117: 12836.1 | AK117: 782532.27 | AL117: 485300 | AM117: 104447.24 | AN117: 828913.79 | AO117: 0 | AP117: 50170.39 | AQ117: 781693.56 | AR117: 13996 | AS117: 49710.83 | AT117: 633551.72 | AU117: -148000 | AV117: 71288.9 | AW117: 948000 | AX117: -44462 | AY117: 63927.21 | AZ117: 783500 | BA117: 0 | BB117: 73959.17 | BC117: 709225.69 | BD117: 0 | BE117: 114952.86 | BF117: 757774.19
A118: 211 | B118: 99 | C118: 00 | D118: 000 | E118: 002 | F118: 000 | G118: 000-005 | H118: Personas Jurídicas Beneficiadas Con Aportes Y/O Cuotas Para Comunicaciones | K118: Aporte | L118: 2 | M118: 0 | N118: 2 | O118: 0 | P118: 900000 | Q118: 900000 | R118: 132829.67 | S118: 0 | T118: 0 | U118: 0 | V118: 0 | W118: 0 | X118: 0 | Y118: 0 | Z118: 0 | AA118: 0 | AB118: 0 | AC118: 0 | AD118: 0 | AE118: 0 | AF118: 0 | AI118: 0 | AJ118: 0 | AK118: 0 | AL118: 0 | AM118: 132829.67 | AO118: 0 | AP118: 0 | AR118: 0 | AS118: 0 | AU118: 0 | AV118: 0 | AX118: 0 | AY118: 0 | BA118: 0 | BB118: 0 | BD118: 0 | BE118: 0
A119: 211 | B119: 99 | C119: 00 | D119: 000 | E119: 002 | F119: 000 | I119: 000-005-0001 | J119: Personas Jurídicas Beneficiadas Con Aportes Y/O Cuotas Para Comunicaciones | K119: Aporte | L119: 2 | M119: 0 | N119: 2 | O119: 0 | P119: 900000 | Q119: 900000 | R119: 132829.67 | S119: 0 | T119: 0 | U119: 0 | V119: 0 | W119: 0 | X119: 0 | Y119: 0 | Z119: 0 | AA119: 0 | AB119: 0 | AC119: 0 | AD119: 0 | AE119: 0 | AF119: 0 | AG119: 0 | AH119: 0 | AI119: 0 | AJ119: 0 | AL119: 0 | AM119: 132829.67 | AO119: 0 | AP119: 0 | AR119: 0 | AS119: 0 | AU119: 0 | AV119: 0 | AX119: 0 | AY119: 0 | BA119: 0 | BB119: 0 | BD119: 0 | BE119: 0
A120: 211 | B120: 22 | C120: 00 | D120: 000 | E120: 001 | F120: 000 | G120: 022-007 | H120: Dirección Y Coordinación | K120: Evento | L120: 154 | M120: 0 | N120: 154 | O120: 100 | P120: 18250293 | Q120: 18250293 | R120: 7001858.87 | S120: 0 | T120: 51 | U120: 0 | V120: 4 | W120: 0 | X120: 10 | Y120: 0 | Z120: 5 | AA120: 0 | AB120: 5 | AC120: 0 | AD120: 5 | AE120: 0 | AF120: 20 | AI120: 0 | AJ120: 209747.53 | AK120: 706765.72 | AL120: 0 | AM120: 499944.5 | AN120: 511394.54 | AO120: 0 | AP120: 280938 | AQ120: 491219.18 | AR120: 0 | AS120: 428899.19 | AT120: 478791.6 | AU120: 0 | AV120: 193458.02 | AW120: 490992.31 | AX120: 0 | AY120: 573642.24 | AZ120: 435737.74 | BA120: 0 | BB120: 266648.47 | BC120: 697137.06 | BD120: 0 | BE120: 134445.55 | BF120: 602097.22
A121: 211 | B121: 22 | C121: 00 | D121: 000 | E121: 001 | F121: 000 | I121: 022-007-0001 | J121: Dirección Y Coordinación | K121: Evento | L121: 154 | M121: 0 | N121: 154 | O121: 105 | P121: 18250293 | Q121: 18250293 | R121: 7001858.87 | S121: 0 | T121: 51 | U121: 0 | V121: 4 | W121: 0 | X121: 10 | Y121: 0 | Z121: 5 | AA121: 0 | AB121: 5 | AC121: 0 | AD121: 5 | AE121: 0 | AF121: 20 | AG121: 0 | AH121: 5 | AI121: 0 | AJ121: 209747.53 | AK121: 706765.72 | AL121: 0 | AM121: 499944.5 | AN121: 511394.54 | AO121: 0 | AP121: 280938 | AQ121: 491219.18 | AR121: 0 | AS121: 428899.19 | AT121: 478791.6 | AU121: 0 | AV121: 193458.02 | AW121: 490992.31 | AX121: 0 | AY121: 573642.24 | AZ121: 435737.74 | BA121: 0 | BB121: 266648.47 | BC121: 697137.06 | BD121: 0 | BE121: 134445.55 | BF121: 602097.22
A122: 211 | B122: 22 | C122: 00 | D122: 000 | E122: 002 | F122: 000 | G122: 022-008 | H122: Proveedores, Usuarios Y Usufructuarios De Frecuencias Con Servicios De Regulación | K122: Documento | L122: 4 | M122: 0 | N122: 4 | O122: 12 | P122: 1919786 | Q122: 1919786 | R122: 705382.06 | S122: 0 | T122: 0 | U122: 0 | V122: 0 | W122: 0 | X122: 1 | Y122: 0 | Z122: 10 | AA122: 0 | AB122: 1 | AC122: 0 | AD122: 0 | AE122: 0 | AF122: 0 | AH122: 0 | AI122: 0 | AJ122: 0 | AK122: 122744.68 | AL122: 0 | AM122: 0 | AN122: 74690 | AO122: 0 | AP122: 7950 | AQ122: 81931.38 | AR122: 0 | AS122: 27430 | AT122: 74690 | AU122: 0 | AV122: 0 | AW122: 74690 | AX122: 0 | AY122: 0 | AZ122: 74690 | BA122: 0 | BB122: 0 | BC122: 123306 | BD122: 0 | BE122: -27430 | BF122: 70690
A123: 211 | B123: 22 | C123: 00 | D123: 000 | E123: 002 | F123: 000 | I123: 022-008-0001 | J123: Títulos De Usufructo Emitidos Para Personas Individuales Y/O Jurídicas | K123: Documento | L123: 1 | M123: 0 | N123: 1 | O123: 1 | P123: 1848739 | Q123: 1848739 | R123: 697432.06 | S123: 0 | T123: 0 | U123: 0 | V123: 0 | W123: 0 | X123: 1 | Y123: 0 | Z123: 0 | AA123: 0 | AB123: 0 | AC123: 0 | AD123: 0 | AE123: 0 | AF123: 0 | AG123: 0 | AH123: 0 | AI123: 0 | AJ123: 0 | AK123: 122744.68 | AL123: 0 | AM123: 0 | AN123: 74690 | AO123: 0 | AP123: 0 | AQ123: 81931.38 | AR123: 0 | AS123: 9375 | AT123: 74690 | AU123: 0 | AV123: 0 | AW123: 74690 | AX123: 0 | AY123: 0 | AZ123: 74690 | BA123: 0 | BB123: 0 | BC123: 123306 | BD123: 0 | BE123: -9375 | BF123: 70690
A124: 211 | B124: 22 | C124: 00 | D124: 000 | E124: 002 | F124: 000 | I124: 022-008-0002 | J124: Licencias Emitidas A Proveedores Satelitales | K124: Documento | L124: 2 | M124: 0 | N124: 2 | O124: 1 | P124: 14245 | Q124: 14245 | R124: 0 | S124: 0 | T124: 0 | U124: 0 | V124: 0 | W124: 0 | X124: 0 | Y124: 0 | Z124: 0 | AA124: 0 | AB124: 1 | AC124: 0 | AD124: 0 | AE124: 0 | AF124: 0 | AG124: 0 | AH124: 0 | AI124: 0 | AJ124: 0 | AL124: 0 | AM124: 0 | AO124: 0 | AP124: 0 | AR124: 0 | AS124: 0 | AU124: 0 | AV124: 0 | AX124: 0 | AY124: 0 | BA124: 0 | BB124: 0 | BD124: 0 | BE124: 0
A125: 211 | B125: 22 | C125: 00 | D125: 000 | E125: 002 | F125: 000 | I125: 022-008-0003 | J125: Licencias Emitidas A Usuarios Satelitales | K125: Documento | L125: 1 | M125: 0 | N125: 1 | O125: 0 | P125: 36627 | Q125: 36627 | R125: 0 | S125: 0 | T125: 0 | U125: 0 | V125: 0 | W125: 0 | X125: 0 | Y125: 0 | Z125: 0 | AA125: 0 | AB125: 0 | AC125: 0 | AD125: 0 | AE125: 0 | AF125: 0 | AG125: 0 | AH125: 0 | AI125: 0 | AJ125: 0 | AL125: 0 | AM125: 0 | AO125: 0 | AP125: 0 | AR125: 0 | AS125: 17435 | AU125: 0 | AV125: 0 | AX125: 0 | AY125: 0 | BA125: 0 | BB125: 0 | BD125: 0 | BE125: -17435
A126: 211 | B126: 22 | C126: 00 | D126: 000 | E126: 002 | F126: 000 | I126: 022-008-0004 | J126: Monitoreo Al Espectro Radioeléctrico | K126: Evento | L126: 175 | M126: 0 | N126: 175 | O126: 40 | P126: 20175 | Q126: 20175 | R126: 7950 | S126: 0 | T126: 0 | U126: 0 | V126: 0 | W126: 0 | X126: 0 | Y126: 0 | Z126: 10 | AA126: 0 | AB126: 10 | AC126: 0 | AD126: 0 | AE126: 0 | AF126: 15 | AG126: 0 | AH126: 5 | AI126: 0 | AJ126: 0 | AL126: 0 | AM126: 0 | AO126: 0 | AP126: 7950 | AR126: 0 | AS126: 620 | AU126: 0 | AV126: 0 | AX126: 0 | AY126: 0 | BA126: 0 | BB126: 0 | BD126: 0 | BE126: -620
A127: 211 | B127: 22 | C127: 00 | D127: 000 | E127: 003 | F127: 000 | G127: 022-009 | H127: Recursos De Telefonía Regulados | K127: Documento | L127: 5267 | M127: 0 | N127: 5267 | O127: 3759 | P127: 1951012 | Q127: 1951012 | R127: 1037685.05 | S127: 0 | T127: 2126 | U127: 0 | V127: 168 | W127: 0 | X127: 157 | Y127: 0 | Z127: 154 | AA127: 0 | AB127: 370 | AC127: 0 | AD127: 404 | AE127: 0 | AF127: 380 | AI127: 0 | AJ127: 0 | AK127: 181804.32 | AL127: 0 | AM127: 0 | AN127: 115401.8 | AO127: 0 | AP127: 0 | AQ127: 128436.28 | AR127: 0 | AS127: 0 | AT127: 115401.8 | AU127: 0 | AV127: 0 | AW127: 115401.8 | AX127: 0 | AY127: 0 | AZ127: 115401.8 | BA127: 0 | BB127: 0 | BC127: 170229.6 | BD127: 0 | BE127: 0 | BF127: 95607.65
A128: 211 | B128: 22 | C128: 00 | D128: 000 | E128: 003 | F128: 000 | I128: 022-009-0001 | J128: Operadores De Telefonía Registrados | K128: Registro | L128: 184 | M128: 0 | N128: 184 | O128: 133 | P128: 1933072 | Q128: 1933072 | R128: 1037685.05 | S128: 0 | T128: 12 | U128: 0 | V128: 44 | W128: 0 | X128: 20 | Y128: 0 | Z128: 5 | AA128: 0 | AB128: 14 | AC128: 0 | AD128: 5 | AE128: 0 | AF128: 12 | AG128: 0 | AH128: 21 | AI128: 0 | AJ128: 0 | AK128: 181804.32 | AL128: 0 | AM128: 0 | AN128: 115401.8 | AO128: 0 | AP128: 0 | AQ128: 128436.28 | AR128: 0 | AS128: 0 | AT128: 115401.8 | AU128: 0 | AV128: 0 | AW128: 115401.8 | AX128: 0 | AY128: 0 | AZ128: 115401.8 | BA128: 0 | BB128: 0 | BC128: 170229.6 | BD128: 0 | BE128: 0 | BF128: 95607.65
A129: 211 | B129: 22 | C129: 00 | D129: 000 | E129: 003 | F129: 000 | I129: 022-009-0002 | J129: Numeración Asignada A Personas Jurídicas Y /O Individuales | K129: Documento | L129: 125 | M129: 0 | N129: 125 | O129: 77 | P129: 3533 | Q129: 3533 | R129: 0 | S129: 0 | T129: 12 | U129: 0 | V129: 17 | W129: 0 | X129: 17 | Y129: 0 | Z129: 14 | AA129: 0 | AB129: 4 | AC129: 0 | AD129: 3 | AE129: 0 | AF129: 5 | AG129: 0 | AH129: 5 | AI129: 0 | AJ129: 0 | AL129: 0 | AM129: 0 | AO129: 0 | AP129: 0 | AR129: 0 | AS129: 0 | AU129: 0 | AV129: 0 | AX129: 0 | AY129: 0 | BA129: 0 | BB129: 0 | BD129: 0 | BE129: 0
A130: 211 | B130: 22 | C130: 00 | D130: 000 | E130: 003 | F130: 000 | I130: 022-009-0003 | J130: Puntos De Señalización Asignados A Personas Jurídicas Y/O Individuales | K130: Documento | L130: 30 | M130: 0 | N130: 30 | O130: 9 | P130: 11392 | Q130: 11392 | R130: 0 | S130: 0 | T130: 0 | U130: 0 | V130: 1 | W130: 0 | X130: 0 | Y130: 0 | Z130: 0 | AA130: 0 | AB130: 6 | AC130: 0 | AD130: 1 | AE130: 0 | AF130: 0 | AG130: 0 | AH130: 1 | AI130: 0 | AJ130: 0 | AL130: 0 | AM130: 0 | AO130: 0 | AP130: 0 | AR130: 0 | AS130: 0 | AU130: 0 | AV130: 0 | AX130: 0 | AY130: 0 | BA130: 0 | BB130: 0 | BD130: 0 | BE130: 0
A131: 211 | B131: 22 | C131: 00 | D131: 000 | E131: 003 | F131: 000 | I131: 022-009-0004 | J131: Constancias De Inscripción De Usuarios Jurídicos Y/O Individuales De Telecomunicaciones Móviles | K131: Documento | L131: 5112 | M131: 0 | N131: 5112 | O131: 4004 | P131: 3015 | Q131: 3015 | R131: 0 | S131: 0 | T131: 2114 | U131: 0 | V131: 150 | W131: 0 | X131: 140 | Y131: 0 | Z131: 140 | AA131: 0 | AB131: 360 | AC131: 0 | AD131: 400 | AE131: 0 | AF131: 375 | AG131: 0 | AH131: 325 | AI131: 0 | AJ131: 0 | AL131: 0 | AM131: 0 | AO131: 0 | AP131: 0 | AR131: 0 | AS131: 0 | AU131: 0 | AV131: 0 | AX131: 0 | AY131: 0 | BA131: 0 | BB131: 0 | BD131: 0 | BE131: 0
A132: 212 | B132: 23 | C132: 00 | D132: 000 | E132: 001 | F132: 000 | G132: 000-010 | H132: Dirección Y Coordinación | K132: Evento | L132: 38 | M132: 4 | N132: 34 | O132: 34 | P132: 5076663 | Q132: 5096481 | R132: 2109694.26 | S132: -4 | T132: 0 | U132: 0 | V132: 32 | W132: 0 | X132: 1 | Y132: 0 | Z132: 1 | AA132: 0 | AB132: 0 | AC132: 0 | AD132: 0 | AE132: 0 | AF132: 0 | AI132: 0 | AJ132: 48500 | AK132: 269151.66 | AL132: 0 | AM132: 90521.25 | AN132: 208922.1 | AO132: 0 | AP132: 102407.35 | AQ132: 220999.69 | AR132: 0 | AS132: 109904.5 | AT132: 196492 | AU132: 19818 | AV132: 112355.91 | AW132: 234429.78 | AX132: 0 | AY132: 241496.2 | AZ132: 156816.52 | BA132: 0 | BB132: 18063.25 | BC132: 99634.05 | BD132: 0 | BE132: 0 | BF132: 0
A133: 212 | B133: 23 | C133: 00 | D133: 000 | E133: 001 | F133: 000 | I133: 000-010-0001 | J133: Dirección Y Coordinación | K133: Evento | L133: 38 | M133: 4 | N133: 34 | O133: 34 | P133: 5076663 | Q133: 5096481 | R133: 2109694.26 | S133: -4 | T133: 0 | U133: 0 | V133: 32 | W133: 0 | X133: 1 | Y133: 0 | Z133: 1 | AA133: 0 | AB133: 0 | AC133: 0 | AD133: 0 | AE133: 0 | AF133: 0 | AG133: 0 | AH133: 0 | AI133: 0 | AJ133: 48500 | AK133: 269151.66 | AL133: 0 | AM133: 90521.25 | AN133: 208922.1 | AO133: 0 | AP133: 102407.35 | AQ133: 220999.69 | AR133: 0 | AS133: 109904.5 | AT133: 196492 | AU133: 19818 | AV133: 112355.91 | AW133: 234429.78 | AX133: 0 | AY133: 241496.2 | AZ133: 156816.52 | BA133: 0 | BB133: 18063.25 | BC133: 99634.05 | BD133: 0 | BE133: 0
A134: 212 | B134: 23 | C134: 00 | D134: 000 | E134: 002 | F134: 000 | G134: 000-015 | H134: Personas Beneficiadas Con Proyectos, Supervisión De Telefonía Y Conectividad Subsidiados | K134: Persona | L134: 707 | M134: 681 | N134: 26 | O134: 0 | P134: 2145715 | Q134: 2125897 | R134: 494682.31 | S134: -681 | T134: 0 | U134: 0 | V134: 0 | W134: 0 | X134: 0 | Y134: 0 | Z134: 0 | AA134: 0 | AB134: 0 | AC134: 0 | AD134: 0 | AE134: 0 | AF134: 0 | AI134: 0 | AJ134: 20500 | AK134: 78580.64 | AL134: 0 | AM134: 20500 | AN134: 70551.72 | AO134: 0 | AP134: 0 | AQ134: 54000 | AR134: 0 | AS134: 0 | AT134: 47750 | AU134: -19818 | AV134: 57474.47 | AW134: 41500 | AX134: 0 | AY134: 52793.22 | AZ134: 41500 | BA134: 0 | BB134: 0 | BC134: 9532.26 | BD134: 0 | BE134: 0 | BF134: 0
A135: 212 | B135: 23 | C135: 00 | D135: 000 | E135: 002 | F135: 000 | I135: 000-015-0001 | J135: Personas Beneficiadas Con Proyectos, Supervisión De Telefonía Y Conectividad Subsidiados | K135: Persona | L135: 707 | M135: 681 | N135: 26 | O135: 0 | P135: 2145715 | Q135: 2125897 | R135: 494682.31 | S135: -681 | T135: 0 | U135: 0 | V135: 0 | W135: 0 | X135: 0 | Y135: 0 | Z135: 0 | AA135: 0 | AB135: 0 | AC135: 0 | AD135: 0 | AE135: 0 | AF135: 0 | AG135: 0 | AH135: 0 | AI135: 0 | AJ135: 20500 | AK135: 78580.64 | AL135: 0 | AM135: 20500 | AN135: 70551.72 | AO135: 0 | AP135: 0 | AQ135: 54000 | AR135: 0 | AS135: 0 | AT135: 47750 | AU135: -19818 | AV135: 57474.47 | AW135: 41500 | AX135: 0 | AY135: 52793.22 | AZ135: 41500 | BA135: 0 | BB135: 0 | BC135: 9532.26 | BD135: 0 | BE135: 0
A136: 214 | B136: 20 | C136: 00 | D136: 000 | E136: 001 | F136: 000 | G136: 000-022 | H136: Dirección Y Coordinación | K136: Evento | L136: 201 | M136: 0 | N136: 201 | O136: 74 | P136: 10935606 | Q136: 11714254 | R136: 6800229.64 | S136: 0 | T136: 0 | U136: 0 | V136: 0 | W136: 0 | X136: 60 | Y136: 0 | Z136: 4 | AA136: 0 | AB136: 0 | AC136: 0 | AD136: 4 | AE136: 0 | AF136: 6 | AI136: 0 | AJ136: 343101.22 | AK136: 253259.68 | AL136: 0 | AM136: 305008.12 | AN136: 246808.06 | AO136: 0 | AP136: 491841.25 | AQ136: 288126.62 | AR136: 0 | AS136: 270943.07 | AT136: 253175 | AU136: 0 | AV136: 250068.36 | AW136: 334425 | AX136: 0 | AY136: 639219.43 | AZ136: 284929.03 | BA136: 778648 | BB136: 465020.89 | BC136: 293426.82 | BD136: 0 | BE136: 1799560.96 | BF136: 281316.13
A137: 214 | B137: 20 | C137: 00 | D137: 000 | E137: 001 | F137: 000 | I137: 000-022-0001 | J137: Dirección Y Coordinación | K137: Evento | L137: 201 | M137: 0 | N137: 201 | O137: =SUM(T137:AH137) -> 74 | P137: 10935606 | Q137: 11714254 | R137: 6800229.64 | S137: 0 | T137: 0 | U137: 0 | V137: 0 | W137: 0 | X137: 60 | Y137: 0 | Z137: 4 | AA137: 0 | AB137: 0 | AC137: 0 | AD137: 4 | AE137: 0 | AF137: 6 | AG137: 0 | AH137: 0 | AI137: 0 | AJ137: 343101.22 | AK137: 253259.68 | AL137: 0 | AM137: 305008.12 | AN137: 246808.06 | AO137: 0 | AP137: 491841.25 | AQ137: 288126.62 | AR137: 0 | AS137: 270943.07 | AT137: 253175 | AU137: 0 | AV137: 250068.36 | AW137: 334425 | AX137: 0 | AY137: 639219.43 | AZ137: 284929.03 | BA137: 778648 | BB137: 465020.89 | BC137: 293426.82 | BD137: 0 | BE137: 1799560.96 | BF137: 281316.13
A138: 214 | B138: 20 | C138: 00 | D138: 000 | E138: 002 | F138: 000 | G138: 000-023 | H138: Familias Beneficiadas Con Adjudicación De Propiedad De Vivienda | K138: Familia | L138: 126 | M138: 126 | N138: 0 | O138: 169 | P138: =SUBTOTAL(9,P139:P142) -> 89961 | Q138: =SUBTOTAL(9,Q139:Q142) -> 1311313 | R138: 34469.83 | S138: -126 | T138: 0 | U138: 0 | V138: 0 | W138: 0 | X138: 0 | Y138: 0 | Z138: 0 | AA138: 0 | AB138: 0 | AC138: 0 | AD138: 0 | AE138: 0 | AF138: 169 | AH138: 0 | AI138: 0 | AJ138: 0 | AK138: 0 | AL138: 0 | AM138: 0 | AN138: 0 | AO138: 0 | AP138: 0 | AQ138: 0 | AR138: 0 | AS138: 20993.83 | AT138: 0 | AU138: 0 | AV138: 0 | AW138: 0 | AX138: 0 | AY138: 0 | AZ138: 0 | BA138: 0 | BB138: 0 | BC138: 0 | BD138: 0 | BE138: 13476 | BF138: 0
A139: 214 | B139: 20 | C139: 00 | D139: 000 | E139: 002 | F139: 000 | I139: 000-023-0001 | J139: Familias Beneficiadas Con Adjudicación De Propiedad De Vivienda | K139: Familia | L139: 126 | M139: 126 | N139: 0 | O139: 0 | P139: 86456 | Q139: 0 | R139: 0 | S139: -126 | T139: 0 | U139: 0 | V139: 0 | W139: 0 | X139: 0 | Y139: 0 | Z139: 0 | AA139: 0 | AB139: 0 | AC139: 0 | AD139: 0 | AE139: 0 | AF139: 0 | AG139: 0 | AH139: 0 | AI139: 0 | AJ139: 0 | AL139: -86456 | AM139: 0 | AO139: 0 | AP139: 0 | AR139: 0 | AS139: 0 | AU139: 0 | AV139: 0 | AX139: 0 | AY139: 0 | BA139: 0 | BB139: 0 | BD139: 0 | BE139: 0
A140: 214 | B140: 20 | C140: 00 | D140: 000 | E140: 002 | F140: 000 | I140: 000-023-0002 | J140: Recuperación De La Cartera Crediticia | K140: Unidad monetaria | L140: 1389000 | M140: 1389000 | N140: 0 | O140: 0 | P140: 3505 | Q140: 0 | R140: 0 | S140: -1389000 | T140: 0 | U140: 0 | V140: 0 | W140: 0 | X140: 0 | Y140: 0 | Z140: 0 | AA140: 0 | AB140: 0 | AC140: 0 | AD140: 0 | AE140: 0 | AF140: 0 | AG140: 0 | AH140: 0 | AI140: 0 | AJ140: 0 | AL140: -3505 | AM140: 0 | AO140: 0 | AP140: 0 | AR140: 0 | AS140: 0 | AU140: 0 | AV140: 0 | AX140: 0 | AY140: 0 | BA140: 0 | BB140: 0 | BD140: 0 | BE140: 0
A141: 214 | B141: 20 | C141: 00 | D141: 000 | E141: 002 | F141: 000 | I141: 000-023-0003 | J141: Familias Beneficiadas Con Legalización De Bien Inmueble | K141: Familia | L141: 0 | M141: -400 | N141: 400 | O141: 386 | P141: 0 | Q141: 622140 | R141: 0 | S141: 14 | T141: 0 | U141: 0 | V141: 0 | W141: 0 | X141: 0 | Y141: 386 | Z141: 0 | AA141: 0 | AB141: 0 | AC141: 0 | AD141: 0 | AE141: 0 | AF141: 0 | AG141: 0 | AH141: 0 | AI141: 0 | AJ141: 0 | AL141: 22140 | AM141: 0 | AO141: 0 | AP141: 0 | AR141: 0 | AS141: 0 | AU141: 0 | AV141: 0 | AX141: 0 | AY141: 0 | BA141: 600000 | BB141: 0 | BD141: 0 | BE141: 0
A142: 214 | B142: 20 | C142: 00 | D142: 000 | E142: 002 | F142: 000 | I142: 000-023-0004 | J142: Familias Beneficiadas Con Proceso De Elegibilidad Para Adjudicación De Bien Inmueble | K142: Familia | L142: 0 | M142: -290 | N142: 290 | O142: 459 | P142: 0 | Q142: 689173 | R142: 34469.83 | S142: 45 | T142: 0 | U142: 0 | V142: 0 | W142: 0 | X142: 20 | Y142: 245 | Z142: 25 | AA142: 0 | AB142: 0 | AC142: 0 | AD142: 0 | AE142: 0 | AF142: 169 | AG142: 0 | AH142: 0 | AI142: 0 | AJ142: 0 | AL142: 67821 | AM142: 0 | AO142: 0 | AP142: 0 | AR142: 0 | AS142: 20993.83 | AU142: 0 | AV142: 0 | AX142: 0 | AY142: 0 | BA142: 621352 | BB142: 0 | BD142: 0 | BE142: 13476
A143: 216 | B143: 18 | C143: 00 | D143: 000 | E143: 001 | F143: 000 | G143: 021-001 | H143: Dirección Y Coordinación | K143: Evento | L143: 720 | M143: 527 | N143: 193 | O143: 128 | P143: 19713706 | Q143: 19770468 | R143: 10233077.16 | S143: -527 | T143: 14 | U143: 0 | V143: 16 | W143: 0 | X143: 15 | Y143: 0 | Z143: 18 | AA143: 0 | AB143: 16 | AC143: 0 | AD143: 16 | AE143: 0 | AF143: 17 | AH143: 16 | AI143: 0 | AJ143: 95229.24 | AK143: 726100.07 | AL143: 0 | AM143: 196261.32 | AN143: 752900 | AO143: 0 | AP143: 396357.04 | AQ143: 813819.36 | AR143: 0 | AS143: 413139.57 | AT143: 770650 | AU143: -33931 | AV143: 1379654.93 | AW143: 748504.84 | AX143: 0 | AY143: 1457493.48 | AZ143: 739150 | BA143: 0 | BB143: 327447.54 | BC143: 751923.22 | BD143: 90693 | BE143: 639196.55 | BF143: 25250
A144: 216 | B144: 18 | C144: 00 | D144: 000 | E144: 001 | F144: 000 | I144: 021-001-0001 | J144: Dirección Y Coordinación | K144: Evento | L144: 720 | M144: 527 | N144: 193 | O144: 128 | P144: 19713706 | Q144: 19770468 | R144: 10233077.16 | S144: -527 | T144: 14 | U144: 0 | V144: 16 | W144: 0 | X144: 15 | Y144: 0 | Z144: 18 | AA144: 0 | AB144: 16 | AC144: 0 | AD144: 16 | AE144: 0 | AF144: 17 | AG144: 0 | AH144: 16 | AI144: 0 | AJ144: 95229.24 | AK144: 726100.07 | AL144: 0 | AM144: 196261.32 | AN144: 752900 | AO144: 0 | AP144: 396357.04 | AQ144: 813819.36 | AR144: 0 | AS144: 413139.57 | AT144: 770650 | AU144: -33931 | AV144: 1379654.93 | AW144: 748504.84 | AX144: 0 | AY144: 1457493.48 | AZ144: 739150 | BA144: 0 | BB144: 327447.54 | BC144: 751923.22 | BD144: 90693 | BE144: 639196.55 | BF144: 25250
A145: 216 | B145: 18 | C145: 00 | D145: 000 | E145: 002 | F145: 000 | G145: 021-002 | H145: Conductores Beneficiados Con Servicios De Vigilancia Y Asistencia Vial | K145: Persona | L145: 318887 | M145: -25143 | N145: 344030 | O145: 232830 | P145: 29569131 | Q145: 29512369 | R145: 24254012.65 | S145: 25143 | T145: 28660 | U145: 0 | V145: 28125 | W145: 0 | X145: 27466 | Y145: 0 | Z145: 31898 | AA145: 0 | AB145: 29777 | AC145: 0 | AD145: 27997 | AE145: 0 | AF145: 29400 | AH145: 29507 | AI145: 0 | AJ145: 2855 | AK145: 3081984.32 | AL145: 0 | AM145: 262925 | AN145: 3041960 | AO145: 0 | AP145: 347978.61 | AQ145: 3040452.52 | AR145: 0 | AS145: 290617.71 | AT145: 3032035 | AU145: 33931 | AV145: 267075.7 | AW145: 3023212.42 | AX145: 0 | AY145: 124304.5 | AZ145: 3002298.56 | BA145: 0 | BB145: 221595.31 | BC145: 3260290 | BD145: -90693 | BE145: 974638 | BF145: 279790
A146: 216 | B146: 18 | C146: 00 | D146: 000 | E146: 002 | F146: 000 | I146: 021-002-0001 | J146: Personas Capacitadas En El Programa De Educación Y Seguridad Vial | K146: Persona | L146: 23100 | M146: 3100 | N146: 20000 | O146: 15915 | P146: 23000 | Q146: 23000 | R146: 1862.5 | S146: -3100 | T146: 885 | U146: 0 | V146: 1977 | W146: 0 | X146: 1408 | Y146: 0 | Z146: 2527 | AA146: 0 | AB146: 2335 | AC146: 0 | AD146: 2173 | AE146: 0 | AF146: 2217 | AG146: 0 | AH146: 2393 | AI146: 0 | AJ146: 0 | AL146: 0 | AM146: 0 | AO146: 0 | AP146: 0 | AR146: 0 | AS146: 1862.5 | AU146: 0 | AV146: 0 | AX146: 0 | AY146: 0 | BA146: 0 | BB146: 0 | BD146: 0 | BE146: 0
A147: 216 | B147: 18 | C147: 00 | D147: 000 | E147: 002 | F147: 000 | I147: 021-002-0002 | J147: Elementos Formados Como Brigadas De Protección Y Seguridad Vial En Carretera | K147: Persona | L147: 107 | M147: -343 | N147: 450 | O147: 0 | P147: 320400 | Q147: 320400 | R147: 304483 | S147: 343 | T147: 0 | U147: 0 | V147: 0 | W147: 0 | X147: 0 | Y147: 0 | Z147: 0 | AA147: 0 | AB147: 0 | AC147: 0 | AD147: 0 | AE147: 0 | AF147: 0 | AG147: 0 | AH147: 0 | AI147: 0 | AJ147: 0 | AL147: 0 | AM147: 232605 | AO147: 0 | AP147: 0 | AR147: 0 | AS147: 20840 | AU147: 0 | AV147: 0 | AX147: 0 | AY147: 0 | BA147: 0 | BB147: 0 | BD147: 0 | BE147: 51038
A148: 216 | B148: 18 | C148: 00 | D148: 000 | E148: 002 | F148: 000 | I148: 021-002-0003 | J148: Conductores Atendidos Con Servicios De Seguridad Y Asistencia Vial En Carretera | K148: Persona | L148: 64680 | M148: -110 | N148: 64790 | O148: 45031 | P148: 639450 | Q148: 613450 | R148: 259097.81 | S148: 110 | T148: 5389 | U148: 0 | V148: 4890 | W148: 0 | X148: 5850 | Y148: 0 | Z148: 6475 | AA148: 0 | AB148: 6014 | AC148: 0 | AD148: 5433 | AE148: 0 | AF148: 5361 | AG148: 0 | AH148: 5619 | AI148: 0 | AJ148: 2855 | AL148: 0 | AM148: 650 | AO148: 0 | AP148: 129306.61 | AR148: 0 | AS148: 43065 | AU148: 0 | AV148: 42802.84 | AX148: 0 | AY148: 22065 | BA148: 0 | BB148: 10153.36 | BD148: -26000 | BE148: 8200
A149: 216 | B149: 18 | C149: 00 | D149: 000 | E149: 002 | F149: 000 | I149: 021-002-0004 | J149: Servicios De Regulación Para Beneficio De Conductores Que Transitan En Carretera | K149: Evento | L149: 7710 | M149: -4965 | N149: 12675 | O149: 8058 | P149: 25743932 | Q149: 25881714 | R149: 21762022.82 | S149: 4965 | T149: 780 | U149: 0 | V149: 695 | W149: 0 | X149: 822 | Y149: 0 | Z149: 1228 | AA149: 0 | AB149: 1160 | AC149: 0 | AD149: 1052 | AE149: 0 | AF149: 1181 | AG149: 0 | AH149: 1140 | AI149: 0 | AJ149: 0 | AK149: 3081984.32 | AL149: 0 | AM149: 0 | AN149: 3041960 | AO149: 0 | AP149: 0 | AQ149: 3040452.52 | AR149: 0 | AS149: 0 | AT149: 3032035 | AU149: 33931 | AV149: 0 | AW149: 3023212.42 | AX149: 0 | AY149: 0 | AZ149: 3002298.56 | BA149: 0 | BB149: 0 | BC149: 3260290 | BD149: 103851 | BE149: 0 | BF149: 279790
A150: 216 | B150: 18 | C150: 00 | D150: 000 | E150: 002 | F150: 000 | I150: 021-002-0005 | J150: Personas Atendidas Telefónicamente Por Medio Del Sistema 1520 (Emergencia Vial) | K150: Persona | L150: 231000 | M150: -27790 | N150: 258790 | O150: 171884 | P150: 60000 | Q150: 60000 | R150: 9980 | S150: 27790 | T150: 22386 | U150: 0 | V150: 21258 | W150: 0 | X150: 20208 | Y150: 0 | Z150: 22896 | AA150: 0 | AB150: 21428 | AC150: 0 | AD150: 20391 | AE150: 0 | AF150: 21822 | AG150: 0 | AH150: 21495 | AI150: 0 | AJ150: 0 | AL150: 0 | AM150: 0 | AO150: 0 | AP150: 0 | AR150: 0 | AS150: 0 | AU150: 0 | AV150: 0 | AX150: 0 | AY150: 0 | BA150: 0 | BB150: 9980 | BD150: 0 | BE150: 0
A151: 216 | B151: 18 | C151: 00 | D151: 000 | E151: 002 | F151: 000 | I151: 021-002-0006 | J151: Boleta De Llamada De Atención A Conductores Infractores | K151: Documento | L151: 3234 | M151: 296 | N151: 2938 | O151: 1783 | P151: 2714475 | Q151: 2545931 | R151: 1874566.52 | S151: -296 | T151: 75 | U151: 0 | V151: 146 | W151: 0 | X151: 289 | Y151: 0 | Z151: 401 | AA151: 0 | AB151: 220 | AC151: 0 | AD151: 217 | AE151: 0 | AF151: 206 | AG151: 0 | AH151: 229 | AI151: 0 | AJ151: 0 | AL151: 0 | AM151: 29670 | AO151: 0 | AP151: 218672 | AR151: 0 | AS151: 200100.21 | AU151: 0 | AV151: 207022.86 | AX151: 0 | AY151: 102239.5 | BA151: 0 | BB151: 201461.95 | BD151: -168544 | BE151: 915400
A152: 216 | B152: 18 | C152: 00 | D152: 000 | E152: 002 | F152: 000 | I152: 021-002-0007 | J152: Investigaciones Realizadas De Accidentes De Tránsito En Carreteras | K152: Evento | L152: 37 | M152: -63 | N152: 100 | O152: 32 | P152: 67874 | Q152: 67874 | R152: 42000 | S152: 63 | T152: 2 | U152: 0 | V152: 2 | W152: 0 | X152: 2 | Y152: 0 | Z152: 5 | AA152: 0 | AB152: 4 | AC152: 0 | AD152: 4 | AE152: 0 | AF152: 7 | AG152: 0 | AH152: 6 | AI152: 0 | AJ152: 0 | AL152: 0 | AM152: 0 | AO152: 0 | AP152: 0 | AR152: 0 | AS152: 24750 | AU152: 0 | AV152: 17250 | AX152: 0 | AY152: 0 | BA152: 0 | BB152: 0 | BD152: 0 | BE152: 0
A153: 217 | B153: 20 | C153: 00 | D153: 000 | E153: 001 | F153: 000 | G153: 000-022 | H153: Dirección Y Coordinación | K153: Evento | L153: 263 | M153: 10 | N153: 253 | O153: 87 | P153: 50492933 | Q153: 43183748 | R153: 20634088.51 | S153: 0 | T153: 0 | U153: 0 | V153: 20 | W153: 0 | X153: 13 | Y153: 0 | Z153: 15 | AA153: -10 | AB153: 14 | AC153: 0 | AD153: 8 | AE153: 0 | AF153: 27 | AI153: 0 | AJ153: 29146.4 | AK153: 1730697.93 | AL153: 0 | AM153: 168554.18 | AN153: 1748716.77 | AO153: 0 | AP153: 913356.17 | AQ153: 1683447.59 | AR153: 0 | AS153: 839634.78 | AT153: 1548034.42 | AU153: 0 | AV153: 1352215.74 | AW153: 1692058.48 | AX153: 0 | AY153: 1155990.94 | AZ153: 1544454.35 | BA153: -7309185 | BB153: 679744.47 | BC153: 1647983.2 | BD153: 0 | BE153: 2219647.59 | BF153: 1680405.5
A154: 217 | B154: 20 | C154: 00 | D154: 000 | E154: 001 | F154: 000 | I154: 000-022-0001 | J154: Dirección Y Coordinación | K154: Evento | L154: 263 | M154: 10 | N154: 253 | O154: 87 | P154: 50492933 | Q154: 43183748 | R154: 20634088.51 | S154: 0 | T154: 0 | U154: 0 | V154: 20 | W154: 0 | X154: 13 | Y154: 0 | Z154: 15 | AA154: -10 | AB154: 14 | AC154: 0 | AD154: 8 | AE154: 0 | AF154: 27 | AG154: 0 | AH154: 0 | AI154: 0 | AJ154: 29146.4 | AK154: 1730697.93 | AL154: 0 | AM154: 168554.18 | AN154: 1748716.77 | AO154: 0 | AP154: 913356.17 | AQ154: 1683447.59 | AR154: 0 | AS154: 839634.78 | AT154: 1548034.42 | AU154: 0 | AV154: 1352215.74 | AW154: 1692058.48 | AX154: 0 | AY154: 1155990.94 | AZ154: 1544454.35 | BA154: -7309185 | BB154: 679744.47 | BC154: 1647983.2 | BD154: 0 | BE154: 2219647.59 | BF154: 1680405.5
A155: 217 | B155: 11 | C155: 00 | D155: 000 | E155: 002 | F155: 000 | G155: 017-005 | H155: Red Vial Con Servicios De Mantenimiento | K155: Kilómetro | L155: 219 | M155: 132 | N155: 87 | O155: 44 | P155: 23113645 | Q155: 21520670 | R155: 3844010.52 | S155: -127 | T155: 0 | U155: 0 | V155: 9 | W155: 0 | X155: 8 | Y155: -3 | Z155: 8 | AA155: -2 | AB155: 8 | AC155: 0 | AD155: 8 | AE155: 0 | AF155: 8 | AI155: 0 | AJ155: 0 | AK155: 381209.74 | AL155: 0 | AM155: 0 | AN155: 402500 | AO155: 0 | AP155: 0 | AQ155: 402500 | AR155: 0 | AS155: 0 | AT155: 363700 | AU155: 0 | AV155: 9860 | AW155: 397000 | AX155: 0 | AY155: 6667.07 | AZ155: 373000 | BA155: -1592975 | BB155: 707505 | BC155: 373000 | BD155: 0 | BE155: 47068.71 | BF155: 380000
A156: 217 | B156: 11 | C156: 00 | D156: 000 | E156: 002 | F156: 000 | I156: 017-005-0001 | J156: Red Vial Con Servicios De Mantenimiento | K156: Kilómetro | L156: 219 | M156: 132 | N156: 87 | O156: 44 | P156: 15037645 | Q156: 8791543 | R156: 16527.07 | S156: -127 | T156: 0 | U156: 0 | V156: 9 | W156: 0 | X156: 8 | Y156: -3 | Z156: 8 | AA156: -2 | AB156: 8 | AC156: 0 | AD156: 8 | AE156: 0 | AF156: 8 | AG156: 0 | AH156: 0 | AI156: 0 | AJ156: 0 | AL156: 0 | AM156: 0 | AO156: 0 | AP156: 0 | AR156: 0 | AS156: 0 | AU156: 0 | AV156: 9860 | AX156: 0 | AY156: 6667.07 | BA156: -6246102 | BB156: 0 | BD156: 0 | BE156: 0
A157: 217 | B157: 11 | C157: 00 | D157: 000 | E157: 002 | F157: 000 | I157: 017-005-0002 | J157: Dirección Y Coordinación (Convoyes) | K157: Evento | L157: 128 | M157: -18 | N157: 146 | O157: 79 | P157: 8076000 | Q157: 12729127 | R157: 3827483.45 | S157: 10 | T157: 0 | U157: 0 | V157: 18 | W157: 0 | X157: 10 | Y157: 8 | Z157: 10 | AA157: 0 | AB157: 11 | AC157: 0 | AD157: 11 | AE157: 0 | AF157: 11 | AG157: 0 | AH157: 0 | AI157: 0 | AJ157: 0 | AK157: 381209.74 | AL157: 0 | AM157: 0 | AN157: 402500 | AO157: 0 | AP157: 0 | AQ157: 402500 | AR157: 0 | AS157: 0 | AT157: 363700 | AU157: 0 | AV157: 0 | AW157: 397000 | AX157: 0 | AY157: 0 | AZ157: 373000 | BA157: 4653127 | BB157: 707505 | BC157: 373000 | BD157: 0 | BE157: 47068.71 | BF157: 380000
A158: 217 | B158: 94 | C158: 11 | D158: 000 | E158: 001 | F158: 000 | G158: 000-048 | H158: Intervenciones Realizadas Para La Atención De Daños Provocados Por Depresión Tropical Eta | K158: Kilómetro | L158: 0 | M158: 0 | N158: 0 | O158: 0 | P158: 0 | Q158: 0 | R158: 0 | S158: 0 | T158: 0 | U158: 0 | V158: 0 | W158: 0 | X158: 0 | Y158: 0 | Z158: 0 | AA158: 0 | AB158: 0 | AC158: 0 | AD158: 0 | AE158: 0 | AF158: 0 | AI158: 0 | AJ158: 0 | AK158: 0 | AL158: 0 | AM158: 0 | AN158: 0 | AO158: 0 | AP158: 0 | AQ158: 0 | AR158: 0 | AS158: 0 | AT158: 0 | AU158: 0 | AV158: 0 | AX158: 0 | AY158: 0 | BA158: 0 | BB158: 0 | BD158: 0 | BE158: 0
A159: 217 | B159: 94 | C159: 11 | D159: 000 | E159: 001 | F159: 000 | I159: 000-048-0001 | J159: Intervenciones Realizadas Para La Atención De Daños Provocados Por Depresión Tropical Eta | K159: Kilómetro | L159: 0 | M159: 0 | N159: 0 | O159: 0 | P159: 0 | Q159: 0 | R159: 0 | S159: 0 | T159: 0 | U159: 0 | V159: 0 | W159: 0 | X159: 0 | Y159: 0 | Z159: 0 | AA159: 0 | AB159: 0 | AC159: 0 | AD159: 0 | AE159: 0 | AF159: 0 | AG159: 0 | AH159: 0 | AI159: 0 | AJ159: 0 | AL159: 0 | AM159: 0 | AO159: 0 | AP159: 0 | AR159: 0 | AS159: 0 | AU159: 0 | AV159: 0 | AX159: 0 | AY159: 0 | BA159: 0 | BB159: 0 | BD159: 0 | BE159: 0
A160: 217 | B160: 94 | C160: 14 | D160: 000 | E160: 001 | F160: 000 | G160: 000-049 | H160: Intervenciones Realizadas Para La Atención De La Emergencia Por Época Lluviosa, Temporada Ciclónica Y Sistema De Baja Presión | K160: Kilómetro | L160: 0 | M160: -8 | N160: 8 | O160: 8 | P160: 0 | Q160: 8902160 | R160: 8153299.63 | S160: 0 | T160: 0 | U160: 0 | V160: 0 | W160: 0 | X160: 0 | Y160: 0 | Z160: 0 | AA160: 0 | AB160: 0 | AC160: 0 | AD160: 0 | AE160: 8 | AF160: 0 | AI160: 0 | AJ160: 0 | AK160: 0 | AL160: 0 | AM160: 0 | AN160: 0 | AO160: 0 | AP160: 0 | AQ160: 0 | AR160: 0 | AS160: 0 | AT160: 0 | AU160: 0 | AV160: 0 | AX160: 0 | AY160: 0 | BA160: 8902160 | BB160: 0 | BD160: 0 | BE160: 8153299.63
A161: 217 | B161: 94 | C161: 14 | D161: 000 | E161: 001 | F161: 000 | I161: 000-049-0001 | J161: Intervenciones Realizadas Para La Atención De La Emergencia Por Época Lluviosa, Temporada Ciclónica Y Sistema De Baja Presión | K161: Kilómetro | L161: 0 | M161: -8 | N161: 8 | O161: 8 | P161: 0 | Q161: 8902160 | R161: 8153299.63 | S161: 0 | T161: 0 | U161: 0 | V161: 0 | W161: 0 | X161: 0 | Y161: 0 | Z161: 0 | AA161: 0 | AB161: 0 | AC161: 0 | AD161: 0 | AE161: 8 | AF161: 0 | AG161: 0 | AH161: 0 | AI161: 0 | AJ161: 0 | AL161: 0 | AM161: 0 | AO161: 0 | AP161: 0 | AR161: 0 | AS161: 0 | AU161: 0 | AV161: 0 | AX161: 0 | AY161: 0 | BA161: 8902160 | BB161: 0 | BD161: 0 | BE161: 8153299.63
A162: 218 | B162: 19 | C162: 00 | D162: 000 | E162: 001 | F162: 000 | G162: 019-001 | H162: Dirección Y Coordinación | K162: Evento | L162: 225 | M162: 0 | N162: 225 | O162: 80 | P162: 50000000 | Q162: 48000000 | R162: =+AJ162+AK162+AM162+AN162+AP162+AQ162+AS162+AT162+AV162+AW162+AY162+AZ162+BB162+BC162+BE162+BF162 -> 13864517.29 | S162: 0 | T162: 0 | U162: 0 | V162: 0 | W162: 0 | X162: 0 | Y162: 0 | Z162: 10 | AA162: 0 | AB162: 5 | AC162: 0 | AD162: 30 | AE162: 0 | AF162: 35 | AI162: 0 | AJ162: 389124.46 | AK162: 1154345.19 | AL162: 0 | AM162: 369440.91 | AN162: 1173398.56 | AO162: 0 | AP162: 269462.07 | AQ162: 863448.08 | AR162: 0 | AS162: 637441.36 | AT162: 1336814.17 | AU162: 0 | AV162: 1066603.49 | AW162: 1199571.26 | AX162: 0 | AY162: 583038.11 | AZ162: 1197783.75 | BA162: -2000000 | BB162: 512655.25 | BC162: 1058461.4 | BD162: 0 | BE162: 994571.69 | BF162: 1058357.54
A163: 218 | B163: 19 | C163: 00 | D163: 000 | E163: 001 | F163: 000 | I163: 019-001-0001 | J163: Dirección Y Coordinación | K163: Evento | L163: 225 | M163: 0 | N163: 225 | O163: 80 | P163: 50000000 | Q163: 48000000 | R163: 13864517.29 | S163: 0 | T163: 0 | U163: 0 | V163: 0 | W163: 0 | X163: 0 | Y163: 0 | Z163: 10 | AA163: 0 | AB163: 5 | AC163: 0 | AD163: 30 | AE163: 0 | AF163: 35 | AG163: 0 | AH163: 0 | AI163: 0 | AJ163: 389124.46 | AK163: 1154345.19 | AL163: 0 | AM163: 369440.91 | AN163: 1173398.56 | AO163: 0 | AP163: 269462.07 | AQ163: 863448.08 | AR163: 0 | AS163: 637441.36 | AT163: 1336814.17 | AU163: 0 | AV163: 1066603.49 | AW163: 1199571.26 | AX163: 0 | AY163: 583038.11 | AZ163: 1197783.75 | BA163: -2000000 | BB163: 512655.25 | BC163: 1058461.4 | BD163: 0 | BE163: 994571.69 | BF163: 1058357.54
A164: 218 | B164: 19 | C164: 00 | D164: 000 | E164: 002 | F164: 000 | G164: 019-002 | H164: Familias Beneficiadas Con Subsidios Para La Vivienda | K164: Familia | L164: 17349 | M164: -45 | N164: 17394 | O164: 1980 | P164: 610666000 | Q164: 610666000 | R164: 77862400 | S164: -27 | T164: 0 | U164: 0 | V164: 0 | W164: 0 | X164: 0 | Y164: 0 | Z164: 0 | AA164: 0 | AB164: 0 | AC164: 45 | AD164: 840 | AE164: 27 | AF164: 1068 | AI164: 0 | AJ164: 9544500 | AK164: 0 | AL164: 0 | AM164: 1331750 | AO164: 0 | AP164: 0 | AR164: 0 | AS164: 0 | AU164: 0 | AV164: 0 | AX164: 0 | AY164: 29414900 | BA164: 0 | BB164: 31442250 | BD164: 0 | BE164: 6129000
A165: 218 | B165: 19 | C165: 00 | D165: 000 | E165: 002 | F165: 000 | I165: 019-002-0001 | J165: Familias Con Subsidio Para Adquisición De Lote Con Servicios Básicos | K165: Familia | L165: 360 | M165: 0 | N165: 360 | O165: 0 | P165: 12600000 | Q165: 12600000 | R165: 0 | S165: 0 | T165: 0 | U165: 0 | V165: 0 | W165: 0 | X165: 0 | Y165: 0 | Z165: 0 | AA165: 0 | AB165: 0 | AC165: 0 | AD165: 0 | AE165: 0 | AF165: 0 | AG165: 0 | AH165: 0 | AI165: 0 | AJ165: 0 | AL165: 0 | AM165: 0 | AO165: 0 | AP165: 0 | AR165: 0 | AS165: 0 | AU165: 0 | AV165: 0 | AX165: 0 | AY165: 0 | BA165: 0 | BB165: 0 | BD165: 0 | BE165: 0
A166: 218 | B166: 19 | C166: 00 | D166: 000 | E166: 002 | F166: 000 | I166: 019-002-0002 | J166: Familias Con Subsidio Para Adquisición De Lote Con Vivienda | K166: Familia | L166: 430 | M166: 0 | N166: 430 | O166: 0 | P166: 15050000 | Q166: 15050000 | R166: 0 | S166: 0 | T166: 0 | U166: 0 | V166: 0 | W166: 0 | X166: 0 | Y166: 0 | Z166: 0 | AA166: 0 | AB166: 0 | AC166: 0 | AD166: 0 | AE166: 0 | AF166: 0 | AG166: 0 | AH166: 0 | AI166: 0 | AJ166: 0 | AL166: 0 | AM166: 0 | AO166: 0 | AP166: 0 | AR166: 0 | AS166: 0 | AU166: 0 | AV166: 0 | AX166: 0 | AY166: 0 | BA166: 0 | BB166: 0 | BD166: 0 | BE166: 0
A167: 218 | B167: 19 | C167: 00 | D167: 000 | E167: 002 | F167: 000 | I167: 019-002-0003 | J167: Familias Con Subsidio Para La Adquisición De Módulo Habitacional En Propiedad Horizontal | K167: Familia | L167: 264 | M167: 0 | N167: 264 | O167: 0 | P167: 9254000 | Q167: 9254000 | R167: 0 | S167: 0 | T167: 0 | U167: 0 | V167: 0 | W167: 0 | X167: 0 | Y167: 0 | Z167: 0 | AA167: 0 | AB167: 0 | AC167: 0 | AD167: 0 | AE167: 0 | AF167: 0 | AG167: 0 | AH167: 0 | AI167: 0 | AJ167: 0 | AL167: 0 | AM167: 0 | AO167: 0 | AP167: 0 | AR167: 0 | AS167: 0 | AU167: 0 | AV167: 0 | AX167: 0 | AY167: 0 | BA167: 0 | BB167: 0 | BD167: 0 | BE167: 0
A168: 218 | B168: 19 | C168: 00 | D168: 000 | E168: 002 | F168: 000 | I168: 019-002-0004 | J168: Familias Con Subsidio Para El Mejoramiento, Ampliación Y Reparación De Vivienda | K168: Familia | L168: 1422 | M168: 0 | N168: 1422 | O168: 0 | P168: 49546000 | Q168: 49546000 | R168: 0 | S168: 0 | T168: 0 | U168: 0 | V168: 0 | W168: 0 | X168: 0 | Y168: 0 | Z168: 0 | AA168: 0 | AB168: 0 | AC168: 0 | AD168: 0 | AE168: 0 | AF168: 0 | AG168: 0 | AH168: 0 | AI168: 0 | AJ168: 0 | AL168: 0 | AM168: 0 | AO168: 0 | AP168: 0 | AR168: 0 | AS168: 0 | AU168: 0 | AV168: 0 | AX168: 0 | AY168: 0 | BA168: 0 | BB168: 0 | BD168: 0 | BE168: 0
A169: 218 | B169: 19 | C169: 00 | D169: 000 | E169: 002 | F169: 000 | I169: 019-002-0006 | J169: Familias Con Subsidio Para Construcción De Vivienda | K169: Familia | L169: 14873 | M169: -45 | N169: 14918 | O169: 1980 | P169: 524216000 | Q169: 524216000 | R169: 77862400 | S169: -27 | T169: 0 | U169: 0 | V169: 0 | W169: 0 | X169: 0 | Y169: 0 | Z169: 0 | AA169: 0 | AB169: 0 | AC169: 45 | AD169: 840 | AE169: 27 | AF169: 1068 | AG169: 0 | AH169: 0 | AI169: 0 | AJ169: 9544500 | AL169: 0 | AM169: 1331750 | AO169: 0 | AP169: 0 | AR169: 0 | AS169: 0 | AU169: 0 | AV169: 0 | AX169: 0 | AY169: 29414900 | BA169: 0 | BB169: 31442250 | BD169: 0 | BE169: 6129000
A170: 218 | B170: 94 | C170: 02 | D170: 000 | E170: 002 | F170: 000 | G170: 000-048 | H170: Intervenciones Realizadas Para La Atención De Daños Provocados Por Depresión Tropical Eta | K170: Kilómetro | L170: 0 | M170: 0 | N170: 0 | O170: 0 | P170: 0 | Q170: 0 | R170: 0 | S170: 0 | T170: 0 | U170: 0 | V170: 0 | W170: 0 | X170: 0 | Y170: 0 | Z170: 0 | AA170: 0 | AB170: 0 | AC170: 0 | AD170: 0 | AE170: 0 | AF170: 0 | AI170: 0 | AJ170: 0 | AK170: 0 | AL170: 0 | AM170: 0 | AO170: 0 | AP170: 0 | AR170: 0 | AS170: 0 | AU170: 0 | AV170: 0 | AX170: 0 | AY170: 0 | BA170: 0 | BB170: 0 | BD170: 0 | BE170: 0
A171: 218 | B171: 94 | C171: 02 | D171: 000 | E171: 002 | F171: 000 | I171: 000-048-0003 | J171: Familias Beneficiadas Con Subsidio Para Construcción De Vivienda Por Atención De Daños | K171: Kilómetro | L171: 0 | M171: 0 | N171: 0 | O171: 0 | P171: 0 | Q171: 0 | R171: 0 | S171: 0 | T171: 0 | U171: 0 | V171: 0 | W171: 0 | X171: 0 | Y171: 0 | Z171: 0 | AA171: 0 | AB171: 0 | AC171: 0 | AD171: 0 | AE171: 0 | AF171: 0 | AG171: 0 | AH171: 0 | AI171: 0 | AJ171: 0 | AL171: 0 | AM171: 0 | AO171: 0 | AP171: 0 | AR171: 0 | AS171: 0 | AU171: 0 | AV171: 0 | AX171: 0 | AY171: 0 | BA171: 0 | BB171: 0 | BD171: 0 | BE171: 0
A172: 218 | B172: 94 | C172: 02 | D172: 000 | E172: 002 | F172: 000 | G172: 000-050 | H172: Familias Beneficiadas Con Subsidio Para La Vivienda Por Atención De Daños | K172: Kilómetro | L172: 0 | M172: 0 | N172: 0 | O172: 0 | P172: 0 | Q172: 0 | R172: 0 | S172: 0 | T172: 0 | U172: 0 | V172: 0 | W172: 0 | X172: 0 | Y172: 0 | Z172: 0 | AA172: 0 | AB172: 0 | AC172: 0 | AD172: 0 | AE172: 0 | AF172: 0 | AI172: 0 | AJ172: 0 | AK172: 0 | AL172: 0 | AM172: 0 | AO172: 0 | AP172: 0 | AR172: 0 | AS172: 0 | AU172: 0 | AV172: 0 | AX172: 0 | AY172: 0 | BA172: 0 | BB172: 0 | BD172: 0 | BE172: 0
A173: 218 | B173: 94 | C173: 02 | D173: 000 | E173: 002 | F173: 000 | I173: 000-050-0002 | J173: Familias Beneficiadas Con Subsidio Para Construcción De Vivienda Por Atención De Daños | K173: Kilómetro | L173: 0 | M173: 0 | N173: 0 | O173: 0 | P173: 0 | Q173: 0 | R173: 0 | S173: 0 | T173: 0 | U173: 0 | V173: 0 | W173: 0 | X173: 0 | Y173: 0 | Z173: 0 | AA173: 0 | AB173: 0 | AC173: 0 | AD173: 0 | AE173: 0 | AF173: 0 | AG173: 0 | AH173: 0 | AI173: 0 | AJ173: 0 | AL173: 0 | AM173: 0 | AO173: 0 | AP173: 0 | AR173: 0 | AS173: 0 | AU173: 0 | AV173: 0 | AX173: 0 | AY173: 0 | BA173: 0 | BB173: 0 | BD173: 0 | BE173: 0
